Workbook

Sheet Composições
A1: =Orçamentária!A1 -> Execução de serviços comuns de engenharia nas edificações do CASF
A2: COMPOSIÇÕES DE CUSTO UNITÁRIO
A3: =Orçamentária!A3 -> Data: Outubro de 2020
A5: ITEM | B5: DESCRIÇÃO | C5: DISCRIMINAÇÃO DA COMPOSIÇÃO | D5: UNIDADE | E5: COEFICIENTE | F5: CUSTO UNITÁRIO | G5: CUSTO TOTAL | H5: TOTAL DO SERVIÇO | J5: QTD
A6: SF-00001 | B6: =INDEX(Orçamentária!A:B,MATCH(Composições!A6,Orçamentária!A:A,0),2) -> Engenheiro(a) /Arquiteto(a) júnior | D6: =TRIM(INDEX(Orçamentária!C:C,MATCH(Composições!A6,Orçamentária!A:A,0),1)) -> hh | G6: =IF(ISNUMBER(F6),E6*F6,"") ->  | J6: 3000
J7: 3000
C8: Engenheiro civil de obra junior com encargos complementares | D8: h | E8: 1 | F8: 82.935 | G8: 82.935 | H8: =SUM(G8:G8) -> 82.935 | J8: 3000
J9: 3000
A10: SF-00002 | B10: =INDEX(Orçamentária!A:B,MATCH(Composições!A10,Orçamentária!A:A,0),2) -> Mestre de obras | D10: =TRIM(INDEX(Orçamentária!C:C,MATCH(Composições!A10,Orçamentária!A:A,0),1)) -> hh | J10: 6000
J11: 6000
C12: Mestre de obras com encargos complementares | D12: h | E12: 1 | F12: 25.973 | G12: 25.973 | H12: =SUM(G12:G12) -> 25.973 | J12: 6000
J13: 6000
A14: SF-00003 | B14: =INDEX(Orçamentária!A:B,MATCH(Composições!A14,Orçamentária!A:A,0),2) -> Planejamento físico-financeiro | D14: =TRIM(INDEX(Orçamentária!C:C,MATCH(Composições!A14,Orçamentária!A:A,0),1)) -> un | J14: 0
J15: 0
C16: Engenheiro Civil de Obra Pleno com encargos complementares | D16: h | E16: 16 | F16: 94.2495 | G16: 1507.992 | H16: =SUM(G16:G16) -> 1507.992 | J16: 0
J17: 0
A18: SF-00004 | B18: =INDEX(Orçamentária!A:B,MATCH(Composições!A18,Orçamentária!A:A,0),2) -> Projetos de segurança do trabalho | D18: =TRIM(INDEX(Orçamentária!C:C,MATCH(Composições!A18,Orçamentária!A:A,0),1)) -> un | J18: 10
J19: 10
C20: Engenheiro Civil Pleno com encargos complementares | D20: h | E20: 20 | F20: 94.5725 | G20: 1891.45 | H20: =SUM(G20:G21) -> 2125.39 | J20: 10
C21: Anotação de Responsabilidade Técnica | D21: un | E21: 1 | F21: 233.94 | G21: 233.94 | J21: 10
J22: 10
A23: SF-00005 | B23: =INDEX(Orçamentária!A:B,MATCH(Composições!A23,Orçamentária!A:A,0),2) -> Demolição de alvenarias | D23: =TRIM(INDEX(Orçamentária!C:C,MATCH(Composições!A23,Orçamentária!A:A,0),1)) -> m3 | J23: 100
J24: 100
C25: Pedreiro com Encargos Complementares | D25: h | E25: 0.225 | F25: 21.717 | G25: 4.886325 | H25: =SUM(G25:G26) -> 42.1447322 | J25: 100
C26: Servente com Encargos Complementares | D26: h | E26: 2.3248 | F26: 16.0265 | G26: 37.2584072 | J26: 100
J27: 100
A28: SF-00006 | B28: =INDEX(Orçamentária!A:B,MATCH(Composições!A28,Orçamentária!A:A,0),2) -> Demolição de concreto simples | D28: =TRIM(INDEX(Orçamentária!C:C,MATCH(Composições!A28,Orçamentária!A:A,0),1)) -> m3 | J28: 20
J29: 20
C30: Pedreiro com Encargos Complementares | D30: h | E30: 1.3 | F30: 21.717 | G30: 28.2321 | H30: =SUM(G30:G31) -> 236.5766 | J30: 20
C31: Servente com Encargos Complementares | D31: h | E31: 13 | F31: 16.0265 | G31: 208.3445 | J31: 20
J32: 20
A33: SF-00007 | B33: =INDEX(Orçamentária!A:B,MATCH(Composições!A33,Orçamentária!A:A,0),2) -> Demolição de contrapiso | D33: =TRIM(INDEX(Orçamentária!C:C,MATCH(Composições!A33,Orçamentária!A:A,0),1)) -> m2 | J33: 400
J34: 400
C35: Servente com Encargos Complementares | D35: h | E35: 0.7 | F35: 16.0265 | G35: 11.21855 | H35: =SUM(G35:G35) -> 11.21855 | J35: 400
J36: 400
A37: SF-00008 | B37: =INDEX(Orçamentária!A:B,MATCH(Composições!A37,Orçamentária!A:A,0),2) -> Demolição de fechamento ou parede em gesso acartonado | D37: =TRIM(INDEX(Orçamentária!C:C,MATCH(Composições!A37,Orçamentária!A:A,0),1)) -> m2 | J37: 200
J38: 200
C39: Montador de estrutura metálica com encargos complementares | D39: h | E39: 0.1186 | F39: 16.5965 | G39: 1.9683449 | H39: =SUM(G39:G40) -> 5.70091675 | J39: 200
C40: Servente com Encargos Complementares | D40: h | E40: 0.2329 | F40: 16.0265 | G40: 3.73257185 | J40: 200
J41: 200
A42: SF-00009 | B42: =INDEX(Orçamentária!A:B,MATCH(Composições!A42,Orçamentária!A:A,0),2) -> Demolição de forro de gesso | D42: =TRIM(INDEX(Orçamentária!C:C,MATCH(Composições!A42,Orçamentária!A:A,0),1)) -> m2 | J42: 3000
J43: 3000
C44: Montador de estrutura metálica com encargos complementares | D44: h | E44: 0.0258 | F44: 16.5965 | G44: 0.4281897 | H44: =SUM(G44:G45) -> 1.24073325 | J44: 3000
C45: Servente com Encargos Complementares | D45: h | E45: 0.0507 | F45: 16.0265 | G45: 0.81254355 | J45: 3000
J46: 3000
A47: SF-00010 | B47: =INDEX(Orçamentária!A:B,MATCH(Composições!A47,Orçamentária!A:A,0),2) -> Demolição de infraestrutura elétrica (eletrodutos, eletrocalhas, cabos) | D47: =TRIM(INDEX(Orçamentária!C:C,MATCH(Composições!A47,Orçamentária!A:A,0),1)) -> m | J47: 4000
J48: 4000
C49: Eletricista com encargos complementares | D49: h | E49: =ROUND(0.0096*5,4) -> 0.048 | F49: 21.9165 | G49: 1.051992 | H49: =SUM(G49:G50) -> 2.558483 | J49: 4000
C50: Servente com Encargos Complementares | D50: h | E50: =ROUND(0.0188*5,4) -> 0.094 | F50: 16.0265 | G50: 1.506491 | J50: 4000
J51: 4000
A52: SF-00011 | B52: =INDEX(Orçamentária!A:B,MATCH(Composições!A52,Orçamentária!A:A,0),2) -> Demolição de revestimento cerâmico, granito, mármore ou granitina | D52: =TRIM(INDEX(Orçamentária!C:C,MATCH(Composições!A52,Orçamentária!A:A,0),1)) -> m2 | J52: 340
J53: 340
C54: Martelete ou rompedor pneumático manual, 28 kg, com silenciador - CHP diurno. AF_07/2016 | D54: chp | E54: 0.0699 | F54: 19.7885 | G54: 1.38321615 | H54: =SUM(G54:G57) -> 9.3210352 | J54: 340
C55: Martelete ou rompedor pneumático manual, 28 kg, com silenciador - CHI diurno. AF_07/2016 | D55: chi | E55: 0.0482 | F55: 18.4775 | G55: 0.8906155 | J55: 340
C56: Azulejista ou ladrilhista com encargos complementares | D56: h | E56: 0.1055 | F56: 21.6505 | G56: 2.28412775 | J56: 340
C57: Servente com Encargos Complementares | D57: h | E57: 0.2972 | F57: 16.0265 | G57: 4.7630758 | J57: 340
J58: 340
A59: SF-00012 | B59: =INDEX(Orçamentária!A:B,MATCH(Composições!A59,Orçamentária!A:A,0),2) -> Demolição de revestimento em argamassa | D59: =TRIM(INDEX(Orçamentária!C:C,MATCH(Composições!A59,Orçamentária!A:A,0),1)) -> m2 | J59: 1000
J60: 1000
C61: Pedreiro com Encargos Complementares | D61: h | E61: 0.0374 | F61: 21.717 | G61: 0.8122158 | H61: =SUM(G61:G62) -> 2.49980625 | J61: 1000
C62: Servente com Encargos Complementares | D62: h | E62: 0.1053 | F62: 16.0265 | G62: 1.68759045 | J62: 1000
J63: 1000
A64: SF-00013 | B64: =INDEX(Orçamentária!A:B,MATCH(Composições!A64,Orçamentária!A:A,0),2) -> Demolição de tubulação hidrossanitária embutida com conexões e acessórios | D64: =TRIM(INDEX(Orçamentária!C:C,MATCH(Composições!A64,Orçamentária!A:A,0),1)) -> m | J64: 100
J65: 100
C66: Encanador ou Bombeiro Hidráulico com Encargos Complementares | D66: h | E66: 0.0071 | F66: 21.3085 | G66: 0.15129035 | H66: =SUM(G66:G67) -> 0.37566135 | J66: 100
C67: Servente com Encargos Complementares | D67: h | E67: 0.014 | F67: 16.0265 | G67: 0.224371 | J67: 100
J68: 100
A69: SF-00014 | B69: =INDEX(Orçamentária!A:B,MATCH(Composições!A69,Orçamentária!A:A,0),2) -> Demolição em concreto armado | D69: =TRIM(INDEX(Orçamentária!C:C,MATCH(Composições!A69,Orçamentária!A:A,0),1)) -> m3 | J69: 10
G70: =IF(ISNUMBER(F70),E70*F70,"") ->  | J70: 10
C71: Martelete ou rompedor pneumático manual, 28 kg, com silenciador - CHP diurno. AF_07/2016 | D71: chp | E71: 3.2468 | F71: 19.7885 | G71: 64.2493018 | H71: =SUM(G71:G75) -> 212.4172213 | J71: 10
C72: Martelete ou rompedor pneumático manual, 28 kg, com silenciador - CHI diurno. AF_07/2016 | D72: chi | E72: 0.9202 | F72: 18.4775 | G72: 17.0029955 | J72: 10
C73: CABO DE ACO GALVANIZADO, DIAMETRO 9,53 MM (3/8"), COM ALMA DE FIBRA 6 X 25 F | D73: kg | E73: 0.2835 | F73: 42.009 | G73: 11.9095515 | J73: 10
C74: Pedreiro com Encargos Complementares | D74: h | E74: 0.6366 | F74: 21.717 | G74: 13.8250422 | J74: 10
C75: Servente com Encargos Complementares | D75: h | E75: 6.5785 | F75: 16.0265 | G75: 105.4303302 | J75: 10
J76: 10
A77: SF-00016 | B77: =INDEX(Orçamentária!A:B,MATCH(Composições!A77,Orçamentária!A:A,0),2) -> Remoção de armários | D77: =TRIM(INDEX(Orçamentária!C:C,MATCH(Composições!A77,Orçamentária!A:A,0),1)) -> m2 | J77: 240
J78: 240
C79: Carpinteiro de esquadria com encargos complementares | D79: h | E79: 0.35 | F79: 21.6125 | G79: 7.564375 | H79: =SUM(G79:G80) -> 13.17365 | J79: 240
C80: Servente com Encargos Complementares | D80: h | E80: 0.35 | F80: 16.0265 | G80: 5.609275 | J80: 240
J81: 240
A82: SF-00017 | B82: =INDEX(Orçamentária!A:B,MATCH(Composições!A82,Orçamentária!A:A,0),2) -> Remoção de bancadas | D82: =TRIM(INDEX(Orçamentária!C:C,MATCH(Composições!A82,Orçamentária!A:A,0),1)) -> m2 | J82: 40
J83: 40
C84: Pedreiro com Encargos Complementares | D84: h | E84: 0.15 | F84: 21.717 | G84: 3.25755 | H84: =SUM(G84:G85) -> 19.28405 | J84: 40
C85: Servente com Encargos Complementares | D85: h | E85: 1 | F85: 16.0265 | G85: 16.0265 | J85: 40
J86: 40
A87: SF-00018 | B87: =INDEX(Orçamentária!A:B,MATCH(Composições!A87,Orçamentária!A:A,0),2) -> Remoção de batentes de madeira | D87: =TRIM(INDEX(Orçamentária!C:C,MATCH(Composições!A87,Orçamentária!A:A,0),1)) -> un | J87: 50
J88: 50
C89: Pedreiro com Encargos Complementares | D89: h | E89: =0.08/2 -> 0.04 | F89: 21.717 | G89: 0.86868 | H89: =SUM(G89:G90) -> 7.27928 | J89: 50
C90: Servente com Encargos Complementares | D90: h | E90: =0.8/2 -> 0.4 | F90: 16.0265 | G90: 6.4106 | J90: 50
J91: 50
A92: SF-00019 | B92: =INDEX(Orçamentária!A:B,MATCH(Composições!A92,Orçamentária!A:A,0),2) -> Remoção de canaleta em alumínio | D92: =TRIM(INDEX(Orçamentária!C:C,MATCH(Composições!A92,Orçamentária!A:A,0),1)) -> m | J92: 200
J93: 200
C94: Eletricista com encargos complementares | D94: h | E94: =0.75*0.1 -> 0.075 | F94: 21.9165 | G94: 1.6437375 | H94: =SUM(G94:G95) -> 4.0477125 | J94: 200
C95: Servente com Encargos Complementares | D95: h | E95: =0.75*0.2 -> 0.15 | F95: 16.0265 | G95: 2.403975 | J95: 200
J96: 200
A97: SF-00020 | B97: =INDEX(Orçamentária!A:B,MATCH(Composições!A97,Orçamentária!A:A,0),2) -> Remoção de carpete | D97: =TRIM(INDEX(Orçamentária!C:C,MATCH(Composições!A97,Orçamentária!A:A,0),1)) -> m2 | J97: 300
J98: 300
C99: Pedreiro com Encargos Complementares | D99: h | E99: 0.01 | F99: 21.717 | G99: 0.21717 | H99: =SUM(G99:G100) -> 1.81982 | J99: 300
C100: Servente com Encargos Complementares | D100: h | E100: 0.1 | F100: 16.0265 | G100: 1.60265 | J100: 300
J101: 300
A102: SF-00021 | B102: =INDEX(Orçamentária!A:B,MATCH(Composições!A102,Orçamentária!A:A,0),2) -> Remoção de cortinas | D102: =TRIM(INDEX(Orçamentária!C:C,MATCH(Composições!A102,Orçamentária!A:A,0),1)) -> m | J102: 50
J103: 50
C104: Ajudante especializado com encargos complementares | D104: h | E104: =ROUND(1/6,4) -> 0.1667 | F104: 19.0665 | G104: 3.17838555 | H104: =SUM(G104:G104) -> 3.17838555 | J104: 50
J105: 50
A106: SF-00022 | B106: =INDEX(Orçamentária!A:B,MATCH(Composições!A106,Orçamentária!A:A,0),2) -> Remoção de difusores, grelhas e acessórios de climatização | D106: =TRIM(INDEX(Orçamentária!C:C,MATCH(Composições!A106,Orçamentária!A:A,0),1)) -> un | J106: 120
J107: 120
C108: Ajudante de operação em geral com encargos complementares | D108: h | E108: 0.6 | F108: 17.1285 | G108: 10.2771 | H108: =SUM(G108:G109) -> 19.893 | J108: 120
C109: Servente com Encargos Complementares | D109: h | E109: 0.6 | F109: 16.0265 | G109: 9.6159 | J109: 120
J110: 120
A111: SF-00023 | B111: =INDEX(Orçamentária!A:B,MATCH(Composições!A111,Orçamentária!A:A,0),2) -> Remoção de divisória de mármore ou granito | D111: =TRIM(INDEX(Orçamentária!C:C,MATCH(Composições!A111,Orçamentária!A:A,0),1)) -> m2 | J111: 40
J112: 40
C113: Marmorista/graniteiro com encargos complementares | D113: h | E113: 0.6 | F113: 18.0785 | G113: 10.8471 | H113: =SUM(G113:G114) -> 30.0789 | J113: 40
C114: Servente com Encargos Complementares | D114: h | E114: 1.2 | F114: 16.0265 | G114: 19.2318 | J114: 40
J115: 40
A116: SF-00024 | B116: =INDEX(Orçamentária!A:B,MATCH(Composições!A116,Orçamentária!A:A,0),2) -> Remoção de divisórias de MDF e gesso acartonado | D116: =TRIM(INDEX(Orçamentária!C:C,MATCH(Composições!A116,Orçamentária!A:A,0),1)) -> m2 | J116: 1500
J117: 1500
C118: Carpinteiro de esquadria com encargos complementares | D118: h | E118: 1.2 | F118: 21.6125 | G118: 25.935 | H118: =SUM(G118:G118) -> 25.935 | J118: 1500
J119: 1500
A120: SF-00025 | B120: =INDEX(Orçamentária!A:B,MATCH(Composições!A120,Orçamentária!A:A,0),2) -> Remoção de dutos/tubulações | D120: =TRIM(INDEX(Orçamentária!C:C,MATCH(Composições!A120,Orçamentária!A:A,0),1)) -> m | J120: 1500
J121: 1500
C122: Encanador ou Bombeiro Hidráulico com Encargos Complementares | D122: h | E122: 0.175 | F122: 21.3085 | G122: 3.7289875 | H122: =SUM(G122:G123) -> 8.5369375 | J122: 1500
C123: Servente com Encargos Complementares | D123: h | E123: 0.3 | F123: 16.0265 | G123: 4.80795 | J123: 1500
J124: 1500
A125: SF-00026 | B125: =INDEX(Orçamentária!A:B,MATCH(Composições!A125,Orçamentária!A:A,0),2) -> Remoção de esquadrias metálicas | D125: =TRIM(INDEX(Orçamentária!C:C,MATCH(Composições!A125,Orçamentária!A:A,0),1)) -> m2 | J125: 70
J126: 70
C127: Pedreiro com Encargos Complementares | D127: h | E127: 0.05 | F127: 21.717 | G127: 1.08585 | H127: =SUM(G127:G128) -> 9.0991 | J127: 70
C128: Servente com Encargos Complementares | D128: h | E128: 0.5 | F128: 16.0265 | G128: 8.01325 | J128: 70
J129: 70
A130: SF-00027 | B130: =INDEX(Orçamentária!A:B,MATCH(Composições!A130,Orçamentária!A:A,0),2) -> Remoção de exaustor | D130: =TRIM(INDEX(Orçamentária!C:C,MATCH(Composições!A130,Orçamentária!A:A,0),1)) -> un | J130: 15
J131: 15
C132: Eletricista com encargos complementares | D132: h | E132: 0.3 | F132: 21.9165 | G132: 6.57495 | H132: =SUM(G132:G132) -> 6.57495 | J132: 15
J133: 15
A134: SF-00028 | B134: =INDEX(Orçamentária!A:B,MATCH(Composições!A134,Orçamentária!A:A,0),2) -> Remoção de fechadura/puxador de porta | D134: =TRIM(INDEX(Orçamentária!C:C,MATCH(Composições!A134,Orçamentária!A:A,0),1)) -> un | G134: =IF(ISNUMBER(F134),E134*F134,"") ->  | J134: 101
J135: 101
C136: Carpinteiro de esquadria com encargos complementares | D136: h | E136: =0.25 -> 0.25 | F136: 21.6125 | G136: 5.403125 | H136: =SUM(G136:G136) -> 5.403125 | J136: 101
J137: 101
A138: SF-00029 | B138: =INDEX(Orçamentária!A:B,MATCH(Composições!A138,Orçamentária!A:A,0),2) -> Remoção de folha de porta e dobradiças | D138: =TRIM(INDEX(Orçamentária!C:C,MATCH(Composições!A138,Orçamentária!A:A,0),1)) -> un | J138: 82
J139: 82
C140: Pedreiro com Encargos Complementares | D140: h | E140: 0.1315 | F140: 21.717 | G140: 2.8557855 | H140: =SUM(G140:G141) -> 6.9938278 | J140: 82
C141: Servente com Encargos Complementares | D141: h | E141: 0.2582 | F141: 16.0265 | G141: 4.1380423 | J141: 82
J142: 82
A143: SF-00030 | B143: =INDEX(Orçamentária!A:B,MATCH(Composições!A143,Orçamentária!A:A,0),2) -> Remoção de laminado melamínico (LDAP), em PVC ou vinílico | D143: =TRIM(INDEX(Orçamentária!C:C,MATCH(Composições!A143,Orçamentária!A:A,0),1)) -> m2 | J143: 1000
J144: 1000
C145: Pedreiro com Encargos Complementares | D145: h | E145: 0.09 | F145: 21.717 | G145: 1.95453 | H145: =SUM(G145:G146) -> 16.37838 | J145: 1000
C146: Servente com Encargos Complementares | D146: h | E146: 0.9 | F146: 16.0265 | G146: 14.42385 | J146: 1000
J147: 1000
A148: SF-00031 | B148: =INDEX(Orçamentária!A:B,MATCH(Composições!A148,Orçamentária!A:A,0),2) -> Remoção de louças | D148: =TRIM(INDEX(Orçamentária!C:C,MATCH(Composições!A148,Orçamentária!A:A,0),1)) -> un | J148: 80
J149: 80
C150: Encanador ou Bombeiro Hidráulico com Encargos Complementares | D150: h | E150: 0.1755 | F150: 21.3085 | G150: 3.73964175 | H150: =SUM(G150:G151) -> 9.26557895 | J150: 80
C151: Servente com Encargos Complementares | D151: h | E151: 0.3448 | F151: 16.0265 | G151: 5.5259372 | J151: 80
J152: 80
A153: SF-00032 | B153: =INDEX(Orçamentária!A:B,MATCH(Composições!A153,Orçamentária!A:A,0),2) -> Remoção de luminária | D153: =TRIM(INDEX(Orçamentária!C:C,MATCH(Composições!A153,Orçamentária!A:A,0),1)) -> un | J153: 500
J154: 500
C155: Eletricista com encargos complementares | D155: h | E155: =0.0183*5 -> 0.0915 | F155: 21.9165 | G155: 2.00535975 | H155: =SUM(G155:G156) -> 4.8821165 | J155: 500
C156: Servente com Encargos Complementares | D156: h | E156: =0.0359*5 -> 0.1795 | F156: 16.0265 | G156: 2.87675675 | J156: 500
J157: 500
C158: Obs.: Remoção com reaproveitamento | J158: 500
J159: 500
A160: SF-00033 | B160: =INDEX(Orçamentária!A:B,MATCH(Composições!A160,Orçamentária!A:A,0),2) -> Remoção de metais e acessórios | D160: =TRIM(INDEX(Orçamentária!C:C,MATCH(Composições!A160,Orçamentária!A:A,0),1)) -> un | J160: 300
J161: 300
C162: Encanador ou Bombeiro Hidráulico com Encargos Complementares | D162: h | E162: 0.128 | F162: 21.3085 | G162: 2.727488 | H162: =SUM(G162:G163) -> 6.7565501 | J162: 300
C163: Servente com Encargos Complementares | D163: h | E163: 0.2514 | F163: 16.0265 | G163: 4.0290621 | J163: 300
J164: 300
A165: SF-00034 | B165: =INDEX(Orçamentária!A:B,MATCH(Composições!A165,Orçamentária!A:A,0),2) -> Remoção de painéis de vidro temperado | D165: =TRIM(INDEX(Orçamentária!C:C,MATCH(Composições!A165,Orçamentária!A:A,0),1)) -> m2 | J165: 586
J166: 586
C167: Servente com Encargos Complementares | D167: h | E167: 0.35 | F167: 16.0265 | G167: 5.609275 | H167: =SUM(G167:G168) -> 13.210225 | J167: 586
C168: Pedreiro com Encargos Complementares | D168: h | E168: 0.35 | F168: 21.717 | G168: 7.60095 | J168: 586
J169: 586
A170: SF-00035 | B170: =INDEX(Orçamentária!A:B,MATCH(Composições!A170,Orçamentária!A:A,0),2) -> Remoção de película | D170: =TRIM(INDEX(Orçamentária!C:C,MATCH(Composições!A170,Orçamentária!A:A,0),1)) -> m2 | J170: 196
J171: 196
C172: Vidraceiro com encargos complementares | D172: h | E172: 0.4 | F172: 20.178 | G172: 8.0712 | H172: =SUM(G172:G172) -> 8.0712 | J172: 196
J173: 196
A174: SF-00036 | B174: =INDEX(Orçamentária!A:B,MATCH(Composições!A174,Orçamentária!A:A,0),2) -> Remoção de persianas | D174: =TRIM(INDEX(Orçamentária!C:C,MATCH(Composições!A174,Orçamentária!A:A,0),1)) -> m | J174: 400
J175: 400
C176: Ajudante especializado com encargos complementares | D176: h | E176: =ROUND(1/6,4) -> 0.1667 | F176: 19.0665 | G176: 3.17838555 | H176: =SUM(G176:G176) -> 3.17838555 | J176: 400
J177: 400
A178: SF-00037 | B178: =INDEX(Orçamentária!A:B,MATCH(Composições!A178,Orçamentária!A:A,0),2) -> Remoção de pintura ou textura | D178: =TRIM(INDEX(Orçamentária!C:C,MATCH(Composições!A178,Orçamentária!A:A,0),1)) -> m2 | J178: 4000
J179: 4000
C180: Servente com Encargos Complementares | D180: h | E180: 0.4 | F180: 16.0265 | G180: 6.4106 | H180: =SUM(G180:G180) -> 6.4106 | J180: 4000
J181: 4000
A182: SF-00038 | B182: =INDEX(Orçamentária!A:B,MATCH(Composições!A182,Orçamentária!A:A,0),2) -> Remoção de placas de forro | D182: =TRIM(INDEX(Orçamentária!C:C,MATCH(Composições!A182,Orçamentária!A:A,0),1)) -> m2 | J182: 500
J183: 500
C184: Montador de estrutura metálica com encargos complementares | D184: h | E184: =0.0258*3 -> 0.0774 | F184: 16.5965 | G184: 1.2845691 | H184: =SUM(G184:G185) -> 3.72219975 | J184: 500
C185: Servente com Encargos Complementares | D185: h | E185: =0.0507*3 -> 0.1521 | F185: 16.0265 | G185: 2.43763065 | J185: 500
J186: 500
C187: Obs.: remoção com reaproveitamento | J187: 500
J188: 500
A189: SF-00039 | B189: =INDEX(Orçamentária!A:B,MATCH(Composições!A189,Orçamentária!A:A,0),2) -> Remoção de quadros de elétricos ou de telecomunicações | D189: =TRIM(INDEX(Orçamentária!C:C,MATCH(Composições!A189,Orçamentária!A:A,0),1)) -> un | J189: 30
J190: 30
C191: Auxiliar de eletricista com encargos complementares | D191: h | E191: 0.5 | F191: 17.043 | G191: 8.5215 | H191: =SUM(G191:G194) -> 57.22325 | J191: 30
C192: Eletricista com encargos complementares | D192: h | E192: 0.5 | F192: 21.9165 | G192: 10.95825 | J192: 30
C193: Pedreiro com Encargos Complementares | D193: h | E193: 1 | F193: 21.717 | G193: 21.717 | J193: 30
C194: Servente com Encargos Complementares | D194: h | E194: 1 | F194: 16.0265 | G194: 16.0265 | J194: 30
J195: 30
A196: SF-00040 | B196: =INDEX(Orçamentária!A:B,MATCH(Composições!A196,Orçamentária!A:A,0),2) -> Remoção de revestimento acústico | D196: =TRIM(INDEX(Orçamentária!C:C,MATCH(Composições!A196,Orçamentária!A:A,0),1)) -> m2 | J196: 300
J197: 300
C198: Servente com Encargos Complementares | D198: h | E198: 0.2 | F198: 16.0265 | G198: =IF(ISNUMBER(F198),E198*F198,"") -> 3.2053 | H198: =SUM(G198:G198) -> 3.2053 | J198: 300
J199: 300
A200: SF-00041 | B200: =INDEX(Orçamentária!A:B,MATCH(Composições!A200,Orçamentária!A:A,0),2) -> Remoção de rodapé/rodabanca de mármore ou granito | D200: =TRIM(INDEX(Orçamentária!C:C,MATCH(Composições!A200,Orçamentária!A:A,0),1)) -> m | J200: 350
J201: 350
... 4769 more rows

Sheet Comp.Aux1
A1: =Composições!A1 -> Execução de serviços comuns de engenharia nas edificações do CASF
A2: COMPOSIÇÕES DE CUSTO UNITÁRIO AUXILIARES DE 1º NÍVEL
A3: =Composições!A3 -> Data: Outubro de 2020
A5: DESCRIÇÃO | B5: DISCRIMINAÇÃO DA COMPOSIÇÃO | C5: UNIDADE | D5: COEFICIENTE | E5: CUSTO UNITÁRIO | F5: CUSTO TOTAL | G5: TOTAL | I5: QTD
A6: ARGAMASSA TRAÇO 1:3 (EM VOLUME DE CIMENTO E AREIA MÉDIA ÚMIDA), PREPARO MANUAL. AF_08/2019 | C6: M3 | F6: =IF(ISNUMBER(E6),E6*$D6,"") ->  | I6: 10.83
I7: 10.83
B8: Areia media - posto jazida/fornecedor (retirado na jazida, sem transporte) | C8: M3 | D8: 1.07 | E8: 93.8125 | F8: 100.379375 | G8: =SUM(F8:F12) -> 491.3629617 | I8: 10.83
B9: Cimento Portland composto CP II-32 | C9: KG | D9: 482.96 | E9: 0.4465 | F9: 215.64164 | I9: 10.83
B10: Servente com encargos complementares | C10: H | D10: 8.57 | E10: 16.0265 | F10: 137.347105 | I10: 10.83
B11: CARGA, MANOBRA E DESCARGA DE SOLOS E MATERIAIS GRANULARES EM CAMINHÃO BASCULANTE 6 M³ - CARGA COM PÁ CARREGADEIRA (CAÇAMBA DE 1,7 A 2,8 M³ / 128 HP) E DESCARGA LIVRE (UNIDADE: M3). AF_07/2020 | C11: M3 | D11: =ROUND(1*D8,4) -> 1.07 | E11: 4.75517085 | F11: 5.08803281 | I11: 10.83
B12: TRANSPORTE COM CAMINHÃO BASCULANTE DE 6 M³, EM VIA URBANA PAVIMENTADA, DMT ATÉ 30 KM (UNIDADE: M3XKM). AF_07/2020 | C12: M3xKM | D12: =ROUND(D8*20,4) -> 21.4 | E12: 1.53770135 | F12: 32.90680889 | I12: 10.83
I13: 10.83
B14: Obs.: Considerando fornecedor de areia a 20 km do Senado Federal. | I14: 10.83
I15: 10.83
A16: Fixação utilizando parafuso e bucha de nylon, somente mão de obra. af_10/2016 | C16: UN | I16: 120
I17: 120
B18: Auxiliar de encanador ou bombeiro hidráulico com encargos complementares | C18: H | D18: 0.0227 | E18: 16.5965 | F18: 0.37674055 | G18: =SUM(F18:F19) -> 3.8308484 | I18: 120
B19: Encanador ou bombeiro hidráulico com encargos complementares | C19: H | D19: 0.1621 | E19: 21.3085 | F19: 3.45410785 | I19: 120
I20: 120
A21: Fixação de tubos horizontais de PVC, CPVC ou cobre diâmetros menores ou iguais a 40 mm ou eletrocalhas até 150mm de largura, com abraçadeira metálica rígida tipo d 1/2, fixada em perfilado em laje. af_05/2015 | C21: M | I21: 3000
I22: 3000
B23: Abracadeira em aco para amarracao de eletrodutos, tipo D, com 1/2" e parafuso de fixacao | C23: UN | D23: 0.65 | E23: 1.0355 | F23: 0.673075 | G23: =SUM(F23:F25) -> 2.3093265 | I23: 3000
B24: Auxiliar de encanador ou bombeiro hidráulico com encargos complementares | C24: H | D24: 0.01 | E24: 16.5965 | F24: 0.165965 | I24: 3000
B25: Encanador ou bombeiro hidráulico com encargos complementares | C25: H | D25: 0.069 | E25: 21.3085 | F25: 1.4702865 | I25: 3000
I26: 3000
A27: FABRICAÇÃO DE FÔRMA PARA VIGAS, EM CHAPA DE MADEIRA COMPENSADA RESINADA, E = 17 MM. AF_09/2020 | C27: M2 | I27: 62.1
I28: 62.1
B29: Chapa de madeira compensada resinada para forma de concreto, de *2,2 x 1,1* m, e = 17 mm | C29: M2 | D29: 1.146 | E29: 28.063 | F29: 32.160198 | G29: =SUM(F29:F36) -> 72.795688 | I29: 62.1
B30: PONTALETE DE MADEIRA NAO APARELHADA *7,5 X 7,5* CM (3 X 3 ") PINUS, MISTA OU EQUIVALENTE DA REGIAO | C30: M | D30: 0.166 | E30: 3.686 | F30: 0.611876 | I30: 62.1
B31: SARRAFO DE MADEIRA NAO APARELHADA *2,5 X 7,5* CM (1 X 3 ") PINUS, MISTA OU EQUIVALENTE DA REGIAO | C31: M | D31: 6.952 | E31: 1.3205 | F31: 9.180116 | I31: 62.1
B32: Prego de aco polido com cabeca 17 x 21 (2 x 11) | C32: KG | D32: 0.159 | E32: 11.305 | F32: 1.797495 | I32: 62.1
B33: Ajudante de carpinteiro com encargos complementares | C33: H | D33: 0.202 | E33: 18.1735 | F33: 3.671047 | I33: 62.1
B34: Carpinteiro de formas com encargos complementares | C34: H | D34: 1.012 | E34: 21.5745 | F34: 21.833394 | I34: 62.1
B35: Serra circular de bancada com motor elétrico potência de 5HP, com coifa para disco 10" - CHP diurno. af_08/2015 | C35: CHP | D35: 0.05 | E35: 18.905 | F35: 0.94525 | I35: 62.1
B36: Serra circular de bancada com motor elétrico potência de 5HP, com coifa para disco 10" - CHI diurno. af_08/2015 | C36: CHI | D36: 0.152 | E36: 17.081 | F36: 2.596312 | I36: 62.1
I37: 62.1
A38: FABRICAÇÃO DE ESCORAS DE VIGA DO TIPO GARFO, EM MADEIRA. AF_09/2020 | C38: M | I38: 181.6
I39: 181.6
B40: CHAPA DE MADEIRA COMPENSADA PLASTIFICADA PARA FORMA DE CONCRETO, DE 2,20 x 1,10 M, E = 18 MM | C40: M2 | D40: 0.136 | E40: 35.226 | F40: 4.790736 | G40: =SUM(F40:F46) -> 18.2007745 | I40: 181.6
B41: PONTALETE DE MADEIRA NAO APARELHADA *7,5 X 7,5* CM (3 X 3 ") PINUS, MISTA OU EQUIVALENTE DA REGIAO | C41: M | D41: 2.342 | E41: 3.686 | F41: 8.632612 | I41: 181.6
B42: PREGO DE ACO POLIDO COM CABECA 17 X 21 (2 X 11) | C42: KG | D42: 0.012 | E42: 11.305 | F42: 0.13566 | I42: 181.6
B43: AJUDANTE DE CARPINTEIRO COM ENCARGOS COMPLEMENTARES | C43: H | D43: 0.032 | E43: 18.1735 | F43: 0.581552 | I43: 181.6
B44: CARPINTEIRO DE FORMAS COM ENCARGOS COMPLEMENTARES | C44: H | D44: 0.161 | E44: 21.5745 | F44: 3.4734945 | I44: 181.6
B45: SERRA CIRCULAR DE BANCADA COM MOTOR ELÉTRICO POTÊNCIA DE 5HP, COM COIFA PARA DISCO 10" - CHP DIURNO. AF_08/2015 | C45: CHP | D45: 0.022 | E45: 18.905 | F45: 0.41591 | I45: 181.6
B46: SERRA CIRCULAR DE BANCADA COM MOTOR ELÉTRICO POTÊNCIA DE 5HP, COM COIFA PARA DISCO 10" - CHI DIURNO. AF_08/2015 | C46: CHI | D46: 0.01 | E46: 17.081 | F46: 0.17081 | I46: 181.6
I47: 181.6
A48: ARGAMASSA TRAÇO 1:2:8 (EM VOLUME DE CIMENTO, CAL E AREIA MÉDIA ÚMIDA) PARA EMBOÇO/MASSA ÚNICA/ASSENTAMENTO DE ALVENARIA DE VEDAÇÃO, PREPARO MECÂNICO COM BETONEIRA 400 L. AF_08/2019 | C48: M3 | I48: 6.168
I49: 6.168
B50: Areia media - posto jazida/fornecedor (retirado na jazida, sem transporte) | C50: M3 | D50: 1.16 | E50: 93.8125 | F50: 108.8225 | G50: =SUM(F50:F57) -> 444.8468095 | I50: 6.168
B51: Cal hidratada CH-I para argamassas | C51: KG | D51: 174.1 | E51: 0.76 | F51: 132.316 | I51: 6.168
B52: Cimento Portland composto CP II-32 | C52: KG | D52: 195.86 | E52: 0.4465 | F52: 87.45149 | I52: 6.168
B53: Operador de betoneira estacionária/misturador com encargos complementares | C53: H | D53: 4.5 | E53: 16.245 | F53: 73.1025 | I53: 6.168
B54: Betoneira capacidade nominal de 400 L, capacidade de mistura 280 L, motor elétrico trifásico potência de 2 cv, sem carregador - CHP diurno. af_10/2014 | C54: CHP | D54: 1.05 | E54: 1.121 | F54: 1.17705 | I54: 6.168
B55: Betoneira capacidade nominal de 400 L, capacidade de mistura 280 L, motor elétrico trifásico potência de 2 cv, sem carregador - CHI diurno. af_10/2014 | C55: CHI | D55: 3.45 | E55: 0.228 | F55: 0.7866 | I55: 6.168
B56: CARGA, MANOBRA E DESCARGA DE SOLOS E MATERIAIS GRANULARES EM CAMINHÃO BASCULANTE 6 M³ - CARGA COM PÁ CARREGADEIRA (CAÇAMBA DE 1,7 A 2,8 M³ / 128 HP) E DESCARGA LIVRE (UNIDADE: M3). AF_07/2020 | C56: M3 | D56: =ROUND(1*D50,4) -> 1.16 | E56: 4.75517085 | F56: 5.515998186 | I56: 6.168
B57: TRANSPORTE COM CAMINHÃO BASCULANTE DE 6 M³, EM VIA URBANA PAVIMENTADA, DMT ATÉ 30 KM (UNIDADE: M3XKM). AF_07/2020 | C57: M3xKM | D57: =ROUND(D50*20,4) -> 23.2 | E57: 1.53770135 | F57: 35.67467132 | I57: 6.168
I58: 6.168
B59: Obs.: Considerando fornecedor de areia a 20 km do Senado Federal. | I59: 6.168
I60: 6.168
A61: Contrapiso em argamassa traço 1:4 (cimento e areia), preparo mecânico com betoneira 400 l, aplicado em áreas secas sobre laje, aderido, espessura 3cm. AF_06/2014 | C61: M2 | I61: 0
I62: 0
B63: Cimento Portland composto CP II-32 | C63: KG | D63: 0.5 | E63: 0.4465 | F63: 0.22325 | G63: =SUM(F63:F67) -> 34.90522882 | I63: 0
B64: Aditivo adesivo liquido para argamassas de revestimentos cimenticios | C64: L | D64: 0.435 | E64: 11.3905 | F64: 4.9548675 | I64: 0
B65: ARGAMASSA TRAÇO 1:4 (EM VOLUME DE CIMENTO E AREIA MÉDIA ÚMIDA) PARA CONTRAPISO, PREPARO MECÂNICO COM BETONEIRA 400 L. AF_08/2019 | C65: M3 | D65: 0.0431 | E65: 462.0911559 | F65: 19.91612882 | I65: 0
B66: Pedreiro com encargos complementares | C66: H | D66: 0.33 | E66: 21.717 | F66: 7.16661 | I66: 0
B67: Servente com encargos complementares | C67: H | D67: 0.165 | E67: 16.0265 | F67: 2.6443725 | I67: 0
I68: 0
A69: ARGAMASSA TRAÇO 1:3 (EM VOLUME DE CIMENTO E AREIA GROSSA ÚMIDA) PARA CHAPISCO CONVENCIONAL, PREPARO MANUAL. AF_08/2019 | C69: M3 | I69: 4.2
F70: =IF(ISNUMBER(E70),E70*$D70,"") ->  | I70: 4.2
B71: Areia grossa - posto jazida/fornecedor (retirado na jazida, sem transporte) | C71: M3 | D71: 0.94 | E71: 118.7025 | F71: 111.58035 | G71: =SUM(F71:F75) -> 510.275321 | I71: 4.2
B72: Cimento Portland composto CP II-32 | C72: KG | D72: 422.63 | E72: 0.4465 | F72: 188.704295 | I72: 4.2
B73: Servente com encargos complementares | C73: H | D73: 11.02 | E73: 16.0265 | F73: 176.61203 | I73: 4.2
B74: CARGA, MANOBRA E DESCARGA DE SOLOS E MATERIAIS GRANULARES EM CAMINHÃO BASCULANTE 6 M³ - CARGA COM PÁ CARREGADEIRA (CAÇAMBA DE 1,7 A 2,8 M³ / 128 HP) E DESCARGA LIVRE (UNIDADE: M3). AF_07/2020 | C74: M3 | D74: =ROUND(1*D71,4) -> 0.94 | E74: 4.75517085 | F74: 4.469860599 | I74: 4.2
B75: TRANSPORTE COM CAMINHÃO BASCULANTE DE 6 M³, EM VIA URBANA PAVIMENTADA, DMT ATÉ 30 KM (UNIDADE: M3XKM). AF_07/2020 | C75: M3xKM | D75: =ROUND(D71*20,4) -> 18.8 | E75: 1.53770135 | F75: 28.90878538 | I75: 4.2
I76: 4.2
B77: Obs.: Considerando fornecedor de areia a 20 km do Senado Federal. | I77: 4.2
I78: 4.2
A79: ARGAMASSA INDUSTRIALIZADA PARA CHAPISCO COLANTE, PREPARO COM MISTURADOR DE EIXO HORIZONTAL DE 300 KG. AF_08/2019 | C79: M3 | I79: 0.128
I80: 0.128
B81: Argamassa industrializada para chapisco colante | C81: KG | D81: 1981.23 | E81: 0.8265 | F81: 1637.486595 | G81: =SUM(F81:F84) -> 1719.818535 | I81: 0.128
B82: Operador de betoneira estacionária/misturador com encargos complementares | C82: H | D82: 4.72 | E82: 16.245 | F82: 76.6764 | I82: 0.128
B83: Misturador de argamassa, eixo horizontal, capacidade de mistura 300 kg, motor elétrico potência 5 cv - CHP diurno. af_06/2014 | C83: CHP | D83: 1.1 | E83: 3.078 | F83: 3.3858 | I83: 0.128
B84: Misturador de argamassa, eixo horizontal, capacidade de mistura 300 kg, motor elétrico potência 5 cv - CHI diurno. af_06/2014 | C84: CHI | D84: 3.62 | E84: 0.627 | F84: 2.26974 | I84: 0.128
I85: 0.128
A86: ARGAMASSA TRAÇO 1:4 (EM VOLUME DE CIMENTO E AREIA MÉDIA ÚMIDA) PARA CONTRAPISO, PREPARO MANUAL. AF_08/2019 | C86: M3 | I86: 20.23
I87: 20.23
B88: Areia media - posto jazida/fornecedor (retirado na jazida, sem transporte) | C88: M3 | D88: 1.35 | E88: 93.8125 | F88: 126.646875 | G88: =SUM(F88:F92) -> 554.1662921 | I88: 20.23
B89: Cimento Portland composto CP II-32 | C89: KG | D89: 454.58 | E89: 0.4465 | F89: 202.96997 | I89: 20.23
B90: Servente com encargos complementares | C90: H | D90: 11.02 | E90: 16.0265 | F90: 176.61203 | I90: 20.23
B91: CARGA, MANOBRA E DESCARGA DE SOLOS E MATERIAIS GRANULARES EM CAMINHÃO BASCULANTE 6 M³ - CARGA COM PÁ CARREGADEIRA (CAÇAMBA DE 1,7 A 2,8 M³ / 128 HP) E DESCARGA LIVRE (UNIDADE: M3). AF_07/2020 | C91: M3 | D91: =ROUND(1*D88,4) -> 1.35 | E91: 4.75517085 | F91: 6.419480648 | I91: 20.23
B92: TRANSPORTE COM CAMINHÃO BASCULANTE DE 6 M³, EM VIA URBANA PAVIMENTADA, DMT ATÉ 30 KM (UNIDADE: M3XKM). AF_07/2020 | C92: M3xKM | D92: =ROUND(D88*20,4) -> 27 | E92: 1.53770135 | F92: 41.51793645 | I92: 20.23
I93: 20.23
B94: Obs.: Considerando fornecedor de areia a 20 km do Senado Federal. | I94: 20.23
I95: 20.23
A96: ARGAMASSA TRAÇO 1:4 (EM VOLUME DE CIMENTO E AREIA MÉDIA ÚMIDA), PREPARO MANUAL. AF_08/2019 | C96: M3 | I96: 0.33
I97: 0.33
B98: Areia media - posto jazida/fornecedor (retirado na jazida, sem transporte) | C98: M3 | D98: 1.15 | E98: 93.8125 | F98: 107.884375 | G98: =SUM(F98:F102) -> 455.5092475 | I98: 0.33
B99: Cimento Portland composto CP II-32 | C99: KG | D99: 389.54 | E99: 0.4465 | F99: 173.92961 | I99: 0.33
B100: Servente com encargos complementares | C100: H | D100: 8.29 | E100: 16.0265 | F100: 132.859685 | I100: 0.33
B101: CARGA, MANOBRA E DESCARGA DE SOLOS E MATERIAIS GRANULARES EM CAMINHÃO BASCULANTE 6 M³ - CARGA COM PÁ CARREGADEIRA (CAÇAMBA DE 1,7 A 2,8 M³ / 128 HP) E DESCARGA LIVRE (UNIDADE: M3). AF_07/2020 | C101: M3 | D101: =ROUND(1*D98,4) -> 1.15 | E101: 4.75517085 | F101: 5.468446477 | I101: 0.33
B102: TRANSPORTE COM CAMINHÃO BASCULANTE DE 6 M³, EM VIA URBANA PAVIMENTADA, DMT ATÉ 30 KM (UNIDADE: M3XKM). AF_07/2020 | C102: M3xKM | D102: =ROUND(D98*20,4) -> 23 | E102: 1.53770135 | F102: 35.36713105 | I102: 0.33
I103: 0.33
B104: Obs.: Considerando fornecedor de areia a 20 km do Senado Federal. | I104: 0.33
I105: 0.33
A106: Fixação de tubos verticais de PPR diâmetros menores ou iguais a 40 mm com abraçadeira metálica rígida tipo D 1/2", fixada em perfilado em alvenaria. af_05/2015 | C106: M | I106: 27800
I107: 27800
B108: Abracadeira em aco para amarracao de eletrodutos, tipo D, com 1/2" e parafuso de fixacao | C108: UN | D108: 0.333 | E108: 1.0355 | F108: 0.3448215 | G108: =SUM(F108:F110) -> 1.1736015 | I108: 27800
B109: Auxiliar de encanador ou bombeiro hidráulico com encargos complementares | C109: H | D109: 0.005 | E109: 16.5965 | F109: 0.0829825 | I109: 27800
B110: Encanador ou bombeiro hidráulico com encargos complementares | C110: H | D110: 0.035 | E110: 21.3085 | F110: 0.7457975 | I110: 27800
I111: 27800
A112: Luva de emenda para eletroduto, aço galvanizado, DN 20 mm (3/4''), aparente, instalada em parede - fornecimento e instalação. af_11/2016_p | C112: UN | I112: 799.92
I113: 799.92
B114: Luva para eletroduto, em aco galvanizado eletrolitico, diametro de 20 mm (3/4") | C114: UN | D114: 1 | E114: 1.4155 | F114: 1.4155 | G114: =SUM(F114:F116) -> 8.53340065 | I114: 799.92
B115: Auxiliar de eletricista com encargos complementares | C115: H | D115: 0.1827 | E115: 17.043 | F115: 3.1137561 | I115: 799.92
B116: Eletricista com encargos complementares | C116: H | D116: 0.1827 | E116: 21.9165 | F116: 4.00414455 | I116: 799.92
I117: 799.92
A118: Luva de emenda para eletroduto, aço galvanizado, DN 25 mm (1''), aparente, instalada em parede - fornecimento e instalação. af_11/2016_p | C118: UN | I118: 499.95
I119: 499.95
B120: Luva para eletroduto, em aco galvanizado eletrolitico, diametro de 25 mm (1") | C120: UN | D120: 1 | E120: 1.6435 | F120: 1.6435 | G120: =SUM(F120:F122) -> 9.56396635 | I120: 499.95
B121: Auxiliar de eletricista com encargos complementares | C121: H | D121: 0.2033 | E121: 17.043 | F121: 3.4648419 | I121: 499.95
B122: Eletricista com encargos complementares | C122: H | D122: 0.2033 | E122: 21.9165 | F122: 4.45562445 | I122: 499.95
I123: 499.95
A124: Luva de emenda para eletroduto, aço galvanizado, DN 32 mm (1 1/4''), aparente, instalada em parede - fornecimento e instalação. af_11/2016_p | C124: UN | I124: 1666.5
I125: 1666.5
B126: Luva para eletroduto, em aco galvanizado eletrolitico, diametro de 32 mm (1 1/4") | C126: UN | D126: 1 | E126: 2.9165 | F126: 2.9165 | G126: =SUM(F126:F128) -> 11.9628959 | I126: 1666.5
B127: Auxiliar de eletricista com encargos complementares | C127: H | D127: 0.2322 | E127: 17.043 | F127: 3.9573846 | I127: 1666.5
B128: Eletricista com encargos complementares | C128: H | D128: 0.2322 | E128: 21.9165 | F128: 5.0890113 | I128: 1666.5
I129: 1666.5
A130: Luva de emenda para eletroduto, aço galvanizado, DN 40 mm (1 1/2''), aparente, instalada em parede - fornecimento e instalação. af_11/2016_p | C130: UN | I130: 1666.5
I131: 1666.5
B132: Luva para eletroduto, em aco galvanizado eletrolitico, diametro de 40 mm (1 1/2") | C132: UN | D132: 1 | E132: 4.2275 | F132: 4.2275 | G132: =SUM(F132:F134) -> 14.55566345 | I132: 1666.5
B133: Auxiliar de eletricista com encargos complementares | C133: H | D133: 0.2651 | E133: 17.043 | F133: 4.5180993 | I133: 1666.5
B134: Eletricista com encargos complementares | C134: H | D134: 0.2651 | E134: 21.9165 | F134: =IF(ISNUMBER(E134),E134*$D134,"") -> 5.81006415 | I134: 1666.5
I135: 1666.5
A136: Luva de emenda para eletroduto, aço galvanizado, DN 50 mm (2''), aparente, instalada em parede - fornecimento e instalação. af_11/2016_p | C136: UN | I136: 666.6
I137: 666.6
B138: Luva para eletroduto, em aco galvanizado eletrolitico, diametro de 50 mm (2") | C138: UN | D138: 1 | E138: 5.8995 | F138: 5.8995 | G138: =SUM(F138:F140) -> 16.22766345 | I138: 666.6
B139: Auxiliar de eletricista com encargos complementares | C139: H | D139: 0.2651 | E139: 17.043 | F139: 4.5180993 | I139: 666.6
B140: Eletricista com encargos complementares | C140: H | D140: 0.2651 | E140: 21.9165 | F140: 5.81006415 | I140: 666.6
I141: 666.6
A142: Fixação de tubos verticais de PPR diâmetros maiores que 40 mm e menores ou iguais a 75 mm com abraçadeira metálica rígida tipo D 1 1/2", fixada em perfilado em alvenaria. af_05/2015 | C142: M | I142: 0
I143: 0
B144: Abracadeira em aco para amarracao de eletrodutos, tipo D, com 1 1/2" e parafuso de fixacao | C144: UN | D144: 0.333 | E144: 2.128 | F144: 0.708624 | G144: =SUM(F144:F146) -> 2.285662 | I144: 0
B145: Auxiliar de encanador ou bombeiro hidráulico com encargos complementares | C145: H | D145: 0.009 | E145: 16.5965 | F145: 0.1493685 | I145: 0
B146: Encanador ou bombeiro hidráulico com encargos complementares | C146: H | D146: 0.067 | E146: 21.3085 | F146: 1.4276695 | I146: 0
I147: 0
A148: Fixação de tubos verticais de PPR diâmetros maiores que 40 mm e menores ou iguais a 75 mm com abraçadeira metálica rígida tipo D 2", fixada em perfilado em alvenaria. af_05/2015 | C148: M | I148: 4000
I149: 4000
B150: Abracadeira em aco para amarracao de eletrodutos, tipo D, com 2" e parafuso de fixacao | C150: UN | D150: 0.333 | E150: 2.356 | F150: 0.784548 | G150: =SUM(F150:F152) -> 2.361586 | I150: 4000
B151: Auxiliar de encanador ou bombeiro hidráulico com encargos complementares | C151: H | D151: 0.009 | E151: 16.5965 | F151: 0.1493685 | I151: 4000
B152: Encanador ou bombeiro hidráulico com encargos complementares | C152: H | D152: 0.067 | E152: 21.3085 | F152: 1.4276695 | I152: 4000
I153: 4000
A154: ARGAMASSA TRAÇO 1:2:9 (EM VOLUME DE CIMENTO, CAL E AREIA MÉDIA ÚMIDA) PARA EMBOÇO/MASSA ÚNICA/ASSENTAMENTO DE ALVENARIA DE VEDAÇÃO, PREPARO MECÂNICO COM BETONEIRA 600 L. AF_08/2019 | C154: M3 | I154: 1.56
I155: 1.56
B156: Areia media - posto jazida/fornecedor (retirado na jazida, sem transporte) | C156: M3 | D156: 1.18 | E156: 93.8125 | F156: 110.69875 | G156: =SUM(F156:F164) -> 428.6688435 | I156: 1.56
B157: Cal hidratada CH-I para argamassas | C157: KG | D157: 157.44 | E157: 0.76 | F157: 119.6544 | I157: 1.56
B158: Cimento Portland composto CP II-32 | C158: KG | D158: 177.12 | E158: 0.4465 | F158: 79.08408 | I158: 1.56
B159: Servente com encargos complementares | C159: H | D159: 0.79 | E159: 16.0265 | F159: 12.660935 | I159: 1.56
B160: Operador de betoneira estacionária/misturador com encargos complementares | C160: H | D160: 3.65 | E160: 16.245 | F160: 59.29425 | I160: 1.56
B161: Betoneira capacidade nominal de 600 L, capacidade de mistura 360 L, motor elétrico trifásico potência de 4 cv, sem carregador - CHP diurno. af_11/2014 | C161: CHP | D161: 0.85 | E161: 3.1635 | F161: 2.688975 | I161: 1.56
B162: Betoneira capacidade nominal de 600 L, capacidade de mistura 360 L, motor elétrico trifásico potência de 4 cv, sem carregador - CHI diurno. af_11/2014 | C162: CHI | D162: 2.8 | E162: 0.9595 | F162: 2.6866 | I162: 1.56
B163: CARGA, MANOBRA E DESCARGA DE SOLOS E MATERIAIS GRANULARES EM CAMINHÃO BASCULANTE 6 M³ - CARGA COM PÁ CARREGADEIRA (CAÇAMBA DE 1,7 A 2,8 M³ / 128 HP) E DESCARGA LIVRE (UNIDADE: M3). AF_07/2020 | C163: M3 | D163: =ROUND(1*D156,4) -> 1.18 | E163: 4.75517085 | F163: 5.611101603 | I163: 1.56
B164: TRANSPORTE COM CAMINHÃO BASCULANTE DE 6 M³, EM VIA URBANA PAVIMENTADA, DMT ATÉ 30 KM (UNIDADE: M3XKM). AF_07/2020 | C164: M3xKM | D164: =ROUND(D156*20,4) -> 23.6 | E164: 1.53770135 | F164: 36.28975186 | I164: 1.56
I165: 1.56
B166: Obs.: Considerando fornecedor de areia a 20 km do Senado Federal. | I166: 1.56
I167: 1.56
A168: ARGAMASSA TRAÇO 1:4 (EM VOLUME DE CIMENTO E AREIA MÉDIA ÚMIDA) PARA CONTRAPISO, PREPARO MECÂNICO COM BETONEIRA 400 L. AF_08/2019 | C168: M3 | I168: 0
I169: 0
B170: Areia media - posto jazida/fornecedor (retirado na jazida, sem transporte) | C170: M3 | D170: 1.36 | E170: 93.8125 | F170: 127.585 | G170: =SUM(F170:F176) -> 462.1036741 | I170: 0
B171: Cimento Portland composto CP II-32 | C171: KG | D171: 459.85 | E171: 0.4465 | F171: 205.323025 | I171: 0
B172: Operador de betoneira estacionária/misturador com encargos complementares | C172: H | D172: 4.85 | E172: 16.245 | F172: 78.78825 | I172: 0
B173: Betoneira capacidade nominal de 400 L, capacidade de mistura 280 L, motor elétrico trifásico potência de 2 cv, sem carregador - CHP diurno. af_10/2014 | C173: CHP | D173: 1.13 | E173: 1.121 | F173: 1.26673 | I173: 0
B174: Betoneira capacidade nominal de 400 L, capacidade de mistura 280 L, motor elétrico trifásico potência de 2 cv, sem carregador - CHI diurno. af_10/2014 | C174: CHI | D174: 3.72 | E174: 0.228 | F174: 0.84816 | I174: 0
B175: CARGA, MANOBRA E DESCARGA DE SOLOS E MATERIAIS GRANULARES EM CAMINHÃO BASCULANTE 6 M³ - CARGA COM PÁ CARREGADEIRA (CAÇAMBA DE 1,7 A 2,8 M³ / 128 HP) E DESCARGA LIVRE (UNIDADE: M3). AF_07/2020 | C175: M3 | D175: =ROUND(1*D170,4) -> 1.36 | E175: 4.75517085 | F175: 6.467032356 | I175: 0
B176: TRANSPORTE COM CAMINHÃO BASCULANTE DE 6 M³, EM VIA URBANA PAVIMENTADA, DMT ATÉ 30 KM (UNIDADE: M3XKM). AF_07/2020 | C176: M3xKM | D176: =ROUND(D170*20,4) -> 27.2 | E176: 1.53770135 | F176: 41.82547672 | I176: 0
I177: 0
B178: Obs.: Considerando fornecedor de areia a 20 km do Senado Federal. | I178: 0
I179: 0
A180: UMIDIFICAÇÃO DE MATERIAL PARA VALAS COM CAMINHÃO PIPA 10000L. AF_11/2016 | C180: M3 | I180: 15
I181: 15
B182: CAMINHÃO PIPA 10.000 L TRUCADO, PESO BRUTO TOTAL 23.000 KG, CARGA ÚTIL MÁXIMA 15.935 KG, DISTÂNCIA ENTRE EIXOS 4,8 M, POTÊNCIA 230 CV, INCLUSIVE TANQUE DE AÇO PARA TRANSPORTE DE ÁGUA - CHP DIURNO. AF_06/2014 | C182: CHP | D182: 0.006 | E182: 159.201 | F182: 0.955206 | G182: =SUM(F182:F184) -> 1.1997075 | I182: 15
B183: CAMINHÃO PIPA 10.000 L TRUCADO, PESO BRUTO TOTAL 23.000 KG, CARGA ÚTIL MÁXIMA 15.935 KG, DISTÂNCIA ENTRE EIXOS 4,8 M, POTÊNCIA 230 CV, INCLUSIVE TANQUE DE AÇO PARA TRANSPORTE DE ÁGUA - CHI DIURNO. AF_06/2014 | C183: CHI | D183: 0.003 | E183: 33.421 | F183: 0.100263 | I183: 15
B184: SERVENTE COM ENCARGOS COMPLEMENTARES | C184: H | D184: 0.009 | E184: 16.0265 | F184: 0.1442385 | I184: 15
I185: 15
A186: CORTE E DOBRA DE AÇO CA-50, DIÂMETRO DE 8,0 MM, UTILIZADO EM ESTRUTURAS DIVERSAS, EXCETO LAJES. AF_12/2015 | C186: KG | I186: 5
I187: 5
B188: ACO CA-50, 8,0 MM, VERGALHAO | C188: KG | D188: 1.11 | E188: 5.871 | F188: 6.51681 | G188: =SUM(F188:F190) -> 7.0544948 | I188: 5
B189: AJUDANTE DE ARMADOR COM ENCARGOS COMPLEMENTARES | C189: H | D189: 0.0032 | E189: 16.739 | F189: 0.0535648 | I189: 5
B190: ARMADOR COM ENCARGOS COMPLEMENTARES | C190: H | D190: 0.0224 | E190: 21.6125 | F190: 0.48412 | I190: 5
I191: 5
A192: CORTE E DOBRA DE AÇO CA-50, DIÂMETRO DE 12,5 MM, UTILIZADO EM ESTRUTURAS DIVERSAS, EXCETO LAJES. AF_12/2015 | C192: KG | I192: 5
I193: 5
B194: ACO CA-50, 12,5 MM OU 16,0 MM, VERGALHAO | C194: KG | D194: 1.11 | E194: 4.7975 | F194: 5.325225 | G194: =SUM(F194:F196) -> 5.4932515 | I194: 5
B195: AJUDANTE DE ARMADOR COM ENCARGOS COMPLEMENTARES | C195: H | D195: 0.001 | E195: 16.739 | F195: 0.016739 | I195: 5
B196: ARMADOR COM ENCARGOS COMPLEMENTARES | C196: H | D196: 0.007 | E196: 21.6125 | F196: 0.1512875 | I196: 5
I197: 5
A198: CORTE E DOBRA DE AÇO CA-50, DIÂMETRO DE 20,0 MM, UTILIZADO EM ESTRUTURAS DIVERSAS, EXCETO LAJES. AF_12/2015 | C198: KG | F198: =IF(ISNUMBER(E198),E198*$D198,"") ->  | I198: 5
I199: 5
B200: ACO CA-50, 20,0 MM OU 25,0 MM, VERGALHAO | C200: KG | D200: 1.14 | E200: 5.529 | F200: 6.30306 | G200: =SUM(F200:F201) -> 6.346285 | I200: 5
B201: ARMADOR COM ENCARGOS COMPLEMENTARES | C201: H | D201: 0.002 | E201: 21.6125 | F201: 0.043225 | I201: 5
... 225 more rows

Sheet Comp.Aux2
A1: =Composições!A1 -> Execução de serviços comuns de engenharia nas edificações do CASF
A2: COMPOSIÇÕES DE CUSTO UNITÁRIO AUXILIARES DE 2º NÍVEL
A3: =Composições!A3 -> Data: Outubro de 2020
A5: DESCRIÇÃO | B5: DISCRIMINAÇÃO DA COMPOSIÇÃO | C5: UNIDADE | D5: COEFICIENTE | E5: CUSTO UNITÁRIO | F5: CUSTO TOTAL | G5: TOTAL | I5: QTD
A6: TRANSPORTE COM CAMINHÃO BASCULANTE DE 6 M³, EM VIA URBANA PAVIMENTADA, DMT ATÉ 30 KM (UNIDADE: M3XKM). AF_07/2020 | C6: M3xKM | F6: =IF(ISNUMBER(E6),ROUND(E6*$D6,2),"") ->  | I6: 1044.4356
I7: 1044.4356
B8: CAMINHÃO BASCULANTE 6 M3 TOCO, PESO BRUTO TOTAL 16.000 KG, CARGA ÚTIL MÁXIMA 11.130 KG, DISTÂNCIA ENTRE EIXOS 5,36 M, POTÊNCIA 185 CV, INCLUSIVE CAÇAMBA METÁLICA - CHP DIURNO. AF_06/2014 | C8: CHP | D8: 0.0139 | E8: 96.9665 | F8: 1.35 | G8: =SUM(F8:F9) -> 1.54 | I8: 1044.4356
B9: CAMINHÃO BASCULANTE 6 M3 TOCO, PESO BRUTO TOTAL 16.000 KG, CARGA ÚTIL MÁXIMA 11.130 KG, DISTÂNCIA ENTRE EIXOS 5,36 M, POTÊNCIA 185 CV, INCLUSIVE CAÇAMBA METÁLICA - CHI DIURNO. AF_06/2014 | C9: CHI | D9: 0.006 | E9: 31.6445 | F9: 0.19 | I9: 1044.4356
I10: 1044.4356
A11: CORTE E DOBRA DE AÇO CA-60, DIÂMETRO DE 4,2 MM, UTILIZADO EM LAJE. AF_12/2015 | C11: KG | I11: 0
I12: 0
B13: ACO CA-60, 4,2 MM, OU 5,0 MM, OU 6,0 MM, OU 7,0 MM, VERGALHAO | C13: KG | D13: 1.07 | E13: 5.2345 | F13: 5.6 | G13: =SUM(F13:F15) -> 7.84 | I13: 0
B14: AJUDANTE DE ARMADOR COM ENCARGOS COMPLEMENTARES | C14: H | D14: 0.0131 | E14: 16.739 | F14: 0.22 | I14: 0
B15: ARMADOR COM ENCARGOS COMPLEMENTARES | C15: H | D15: 0.0933 | E15: 21.6125 | F15: 2.02 | I15: 0
I16: 0
A17: CARGA, MANOBRA E DESCARGA DE SOLOS E MATERIAIS GRANULARES EM CAMINHÃO BASCULANTE 6 M³ - CARGA COM PÁ CARREGADEIRA (CAÇAMBA DE 1,7 A 2,8 M³ / 128 HP) E DESCARGA LIVRE (UNIDADE: M3). AF_07/2020 | C17: M3 | I17: 52.22178
I18: 52.22178
B19: CAMINHÃO BASCULANTE 6 M3, PESO BRUTO TOTAL 16.000 KG, CARGA ÚTIL MÁXIMA 13.071 KG, DISTÂNCIA ENTRE EIXOS 4,80 M, POTÊNCIA 230 CV INCLUSIVE CAÇAMBA METÁLICA - CHP DIURNO. AF_06/2014 | C19: CHP | D19: 0.0083 | E19: 109.288 | F19: 0.91 | G19: =SUM(F19:F22) -> 4.75808045 | I19: 52.22178
B20: PÁ CARREGADEIRA SOBRE RODAS, POTÊNCIA LÍQUIDA 128 HP, CAPACIDADE DA CAÇAMBA 1,7 A 2,8 M3, PESO OPERACIONAL 11632 KG - CHI DIURNO. AF_06/2014 | C20: CHI | D20: 0.0151 | E20: 40.8405 | F20: =IF(ISNUMBER(E20),E20*$D20,"") -> 0.61669155 | I20: 52.22178
B21: CAMINHÃO BASCULANTE 6 M3 TOCO, PESO BRUTO TOTAL 16.000 KG, CARGA ÚTIL MÁXIMA 11.130 KG, DISTÂNCIA ENTRE EIXOS 5,36 M, POTÊNCIA 185 CV, INCLUSIVE CAÇAMBA METÁLICA - CHP DIURNO. AF_06/2014 | C21: CHP | D21: 0.0267 | E21: 96.9665 | F21: =IF(ISNUMBER(E21),E21*$D21,"") -> 2.58900555 | I21: 52.22178
B22: CAMINHÃO BASCULANTE 6 M3 TOCO, PESO BRUTO TOTAL 16.000 KG, CARGA ÚTIL MÁXIMA 11.130 KG, DISTÂNCIA ENTRE EIXOS 5,36 M, POTÊNCIA 185 CV, INCLUSIVE CAÇAMBA METÁLICA - CHI DIURNO. AF_06/2014 | C22: CHI | D22: 0.0203 | E22: 31.6445 | F22: =IF(ISNUMBER(E22),E22*$D22,"") -> 0.64238335 | I22: 52.22178
F23: =IF(ISNUMBER(E23),ROUND(E23*$D23,2),"") ->  | I23: 52.22178
A24: ARGAMASSA TRAÇO 1:4 (EM VOLUME DE CIMENTO E AREIA MÉDIA ÚMIDA) PARA CONTRAPISO, PREPARO MECÂNICO COM BETONEIRA 400 L. AF_08/2019 | C24: M3 | I24: 0
I25: 0
B26: Areia media - posto jazida/fornecedor (retirado na jazida, sem transporte) | C26: M3 | D26: 1.36 | E26: 93.8125 | F26: 127.59 | G26: =SUM(F26:F36) -> 462.0925748 | I26: 0
B27: Cimento Portland composto CP II-32 | C27: KG | D27: 459.85 | E27: 0.4465 | F27: 205.32 | I27: 0
B28: Operador de betoneira estacionária/misturador com encargos complementares | C28: H | D28: 4.85 | E28: 16.245 | F28: 78.79 | I28: 0
B29: Betoneira capacidade nominal de 400 L, capacidade de mistura 280 L, motor elétrico trifásico potência de 2 cv, sem carregador - CHP diurno. af_10/2014 | C29: CHP | D29: 1.13 | E29: 1.121 | F29: 1.27 | I29: 0
B30: Betoneira capacidade nominal de 400 L, capacidade de mistura 280 L, motor elétrico trifásico potência de 2 cv, sem carregador - CHI diurno. af_10/2014 | C30: CHI | D30: 3.72 | E30: 0.228 | F30: 0.85 | I30: 0
B31: PÁ CARREGADEIRA SOBRE RODAS, POTÊNCIA LÍQUIDA 128 HP, CAPACIDADE DA CAÇAMBA 1,7 A 2,8 M3, PESO OPERACIONAL 11632 KG - CHP DIURNO. AF_06/2014 | C31: CHP | D31: =ROUND(0.0083*D26,4) -> 0.0113 | E31: 108.148 | F31: =IF(ISNUMBER(E31),E31*$D31,"") -> 1.2220724 | I31: 0
B32: PÁ CARREGADEIRA SOBRE RODAS, POTÊNCIA LÍQUIDA 128 HP, CAPACIDADE DA CAÇAMBA 1,7 A 2,8 M3, PESO OPERACIONAL 11632 KG - CHI DIURNO. AF_06/2014 | C32: CHI | D32: =ROUND(0.0151*D26,4) -> 0.0205 | E32: 40.8405 | F32: =IF(ISNUMBER(E32),E32*$D32,"") -> 0.83723025 | I32: 0
B33: CAMINHÃO BASCULANTE 6 M3 TOCO, PESO BRUTO TOTAL 16.000 KG, CARGA ÚTIL MÁXIMA 11.130 KG, DISTÂNCIA ENTRE EIXOS 5,36 M, POTÊNCIA 185 CV, INCLUSIVE CAÇAMBA METÁLICA - CHP DIURNO. AF_06/2014 | C33: CHP | D33: =ROUND(0.0267*D26,4) -> 0.0363 | E33: 96.9665 | F33: =IF(ISNUMBER(E33),E33*$D33,"") -> 3.51988395 | I33: 0
B34: CAMINHÃO BASCULANTE 6 M3 TOCO, PESO BRUTO TOTAL 16.000 KG, CARGA ÚTIL MÁXIMA 11.130 KG, DISTÂNCIA ENTRE EIXOS 5,36 M, POTÊNCIA 185 CV, INCLUSIVE CAÇAMBA METÁLICA - CHI DIURNO. AF_06/2014 | C34: CHI | D34: =ROUND(0.0203*D26,4) -> 0.0276 | E34: 31.6445 | F34: =IF(ISNUMBER(E34),E34*$D34,"") -> 0.8733882 | I34: 0
B35: CAMINHÃO BASCULANTE 6 M3 TOCO, PESO BRUTO TOTAL 16.000 KG, CARGA ÚTIL MÁXIMA 11.130 KG, DISTÂNCIA ENTRE EIXOS 5,36 M, POTÊNCIA 185 CV, INCLUSIVE CAÇAMBA METÁLICA - CHP DIURNO. AF_06/2014 | C35: CHP | D35: =ROUND(0.0139*20*D26,4) -> 0.3781 | E35: 96.9665 | F35: =IF(ISNUMBER(E35),ROUND(E35*$D35,2),"") -> 36.66 | I35: 0
B36: CAMINHÃO BASCULANTE 6 M3 TOCO, PESO BRUTO TOTAL 16.000 KG, CARGA ÚTIL MÁXIMA 11.130 KG, DISTÂNCIA ENTRE EIXOS 5,36 M, POTÊNCIA 185 CV, INCLUSIVE CAÇAMBA METÁLICA - CHI DIURNO. AF_06/2014 | C36: CHI | D36: =ROUND(0.006*20*D26,4) -> 0.1632 | E36: 31.6445 | F36: 5.16 | I36: 0
I37: 0
B38: Obs.: Considerando fornecedor de areia a 20 km do Senado Federal. | I38: 0
B39: Obs.2: Inclusão de composições (abertas) Sinapi 100973 e 97914. | I39: 0
A40: FABRICAÇÃO DE FÔRMA PARA PILARES E ESTRUTURAS SIMILARES, EM MADEIRA SERRADA, E=25 MM. AF_09/2020 | C40: M2 | I40: 0
I41: 0
B42: SARRAFO DE MADEIRA NAO APARELHADA *2,5 X 7,5* CM (1 X 3 ") PINUS, MISTA OU EQUIVALENTE DA REGIAO | C42: M | D42: 4.432 | E42: 1.3205 | F42: 5.85 | G42: =SUM(F42:F48) -> 122.43 | I42: 0
B43: PREGO DE ACO POLIDO COM CABECA 17 X 21 (2 X 11) | C43: KG | D43: 0.086 | E43: 11.305 | F43: 0.97 | I43: 0
B44: TABUA DE MADEIRA NAO APARELHADA *2,5 X 30* CM, CEDRINHO OU EQUIVALENTE DA REGIAO | C44: M | D44: 6.53 | E44: 14.554 | F44: 95.04 | I44: 0
B45: AJUDANTE DE CARPINTEIRO COM ENCARGOS COMPLEMENTARES | C45: H | D45: 0.143 | E45: 18.1735 | F45: 2.6 | I45: 0
B46: CARPINTEIRO DE FORMAS COM ENCARGOS COMPLEMENTARES | C46: H | D46: 0.715 | E46: 21.5745 | F46: 15.43 | I46: 0
B47: SERRA CIRCULAR DE BANCADA COM MOTOR ELÉTRICO POTÊNCIA DE 5HP, COM COIFA PARA DISCO 10" - CHP DIURNO. AF_08/2015 | C47: CHP | D47: 0.05 | E47: 18.905 | F47: 0.95 | I47: 0
B48: SERRA CIRCULAR DE BANCADA COM MOTOR ELÉTRICO POTÊNCIA DE 5HP, COM COIFA PARA DISCO 10" - CHI DIURNO. AF_08/2015 | C48: CHI | D48: 0.093 | E48: 17.081 | F48: 1.59 | I48: 0
I49: 0
A50: ARGAMASSA TRAÇO 1:3 (EM VOLUME DE CIMENTO E AREIA GROSSA ÚMIDA) PARA CHAPISCO CONVENCIONAL, PREPARO MECÂNICO COM BETONEIRA 400 L. AF_08/2019 | C50: M3 | I50: 0
I51: 0
B52: AREIA GROSSA - POSTO JAZIDA/FORNECEDOR (RETIRADO NA JAZIDA, SEM TRANSPORTE) | C52: M3 | D52: 0.95 | E52: 118.7025 | F52: 112.77 | G52: =SUM(F52:F65) -> 408.9920763 | I52: 0
B53: CIMENTO PORTLAND COMPOSTO CP II-32 | C53: KG | D53: 426.49 | E53: 0.4465 | F53: 190.43 | I53: 0
B54: OPERADOR DE BETONEIRA ESTACIONÁRIA/MISTURADOR COM ENCARGOS COMPLEMENTARES | C54: H | D54: 4.32 | E54: 16.245 | F54: 70.18 | I54: 0
B55: BETONEIRA CAPACIDADE NOMINAL DE 400 L, CAPACIDADE DE MISTURA 280 L, MOTOR ELÉTRICO TRIFÁSICO POTÊNCIA DE 2 CV, SEM CARREGADOR - CHP DIURNO. AF_10/2014 | C55: CHP | D55: 1.01 | E55: 1.121 | F55: 1.13 | I55: 0
B56: BETONEIRA CAPACIDADE NOMINAL DE 400 L, CAPACIDADE DE MISTURA 280 L, MOTOR ELÉTRICO TRIFÁSICO POTÊNCIA DE 2 CV, SEM CARREGADOR - CHI DIURNO. AF_10/2014 | C56: CHI | D56: 3.31 | E56: 0.228 | F56: 0.75 | I56: 0
B57: PÁ CARREGADEIRA SOBRE RODAS, POTÊNCIA LÍQUIDA 128 HP, CAPACIDADE DA CAÇAMBA 1,7 A 2,8 M3, PESO OPERACIONAL 11632 KG - CHP DIURNO. AF_06/2014 | C57: CHP | D57: =ROUND(0.0083*D52,4) -> 0.0079 | E57: 108.148 | F57: =IF(ISNUMBER(E57),E57*$D57,"") -> 0.8543692 | I57: 0
B58: PÁ CARREGADEIRA SOBRE RODAS, POTÊNCIA LÍQUIDA 128 HP, CAPACIDADE DA CAÇAMBA 1,7 A 2,8 M3, PESO OPERACIONAL 11632 KG - CHI DIURNO. AF_06/2014 | C58: CHI | D58: =ROUND(0.0151*D52,4) -> 0.0143 | E58: 40.8405 | F58: =IF(ISNUMBER(E58),E58*$D58,"") -> 0.58401915 | I58: 0
B59: CAMINHÃO BASCULANTE 6 M3 TOCO, PESO BRUTO TOTAL 16.000 KG, CARGA ÚTIL MÁXIMA 11.130 KG, DISTÂNCIA ENTRE EIXOS 5,36 M, POTÊNCIA 185 CV, INCLUSIVE CAÇAMBA METÁLICA - CHP DIURNO. AF_06/2014 | C59: CHP | D59: =ROUND(0.0267*D52,4) -> 0.0254 | E59: 96.9665 | F59: =IF(ISNUMBER(E59),E59*$D59,"") -> 2.4629491 | I59: 0
B60: CAMINHÃO BASCULANTE 6 M3 TOCO, PESO BRUTO TOTAL 16.000 KG, CARGA ÚTIL MÁXIMA 11.130 KG, DISTÂNCIA ENTRE EIXOS 5,36 M, POTÊNCIA 185 CV, INCLUSIVE CAÇAMBA METÁLICA - CHI DIURNO. AF_06/2014 | C60: CHI | D60: =ROUND(0.0203*D52,4) -> 0.0193 | E60: 31.6445 | F60: =IF(ISNUMBER(E60),E60*$D60,"") -> 0.61073885 | I60: 0
B61: CAMINHÃO BASCULANTE 6 M3 TOCO, PESO BRUTO TOTAL 16.000 KG, CARGA ÚTIL MÁXIMA 11.130 KG, DISTÂNCIA ENTRE EIXOS 5,36 M, POTÊNCIA 185 CV, INCLUSIVE CAÇAMBA METÁLICA - CHP DIURNO. AF_06/2014 | C61: CHP | D61: =ROUND(0.0139*20*D52,4) -> 0.2641 | E61: 96.9665 | F61: =IF(ISNUMBER(E61),ROUND(E61*$D61,2),"") -> 25.61 | I61: 0
B62: CAMINHÃO BASCULANTE 6 M3 TOCO, PESO BRUTO TOTAL 16.000 KG, CARGA ÚTIL MÁXIMA 11.130 KG, DISTÂNCIA ENTRE EIXOS 5,36 M, POTÊNCIA 185 CV, INCLUSIVE CAÇAMBA METÁLICA - CHI DIURNO. AF_06/2014 | C62: CHI | D62: =ROUND(0.006*20*D52,4) -> 0.114 | E62: 31.6445 | F62: =IF(ISNUMBER(E62),ROUND(E62*$D62,2),"") -> 3.61 | I62: 0
F63: =IF(ISNUMBER(E63),ROUND(E63*$D63,2),"") ->  | I63: 0
B64: Obs.: Considerando fornecedor de areia a 20 km do Senado Federal. | I64: 0
B65: Obs.2: Inclusão de composições (abertas) Sinapi 100973 e 97914. | I65: 0
F66: =IF(ISNUMBER(E66),ROUND(E66*$D66,2),"") ->  | I66: 0
A67: ARGAMASSA TRAÇO 1:3 (EM VOLUME DE CIMENTO E AREIA GROSSA ÚMIDA) PARA CHAPISCO CONVENCIONAL, PREPARO MECÂNICO COM BETONEIRA 400 L. AF_08/2019 | C67: M3 | I67: 0
I68: 0
B69: AREIA MEDIA - POSTO JAZIDA/FORNECEDOR (RETIRADO NA JAZIDA, SEM TRANSPORTE) | C69: M3 | D69: 1.16 | E69: 93.8125 | F69: 108.82 | G69: =SUM(F69:F82) -> 444.0425368 | I69: 0
B70: CAL HIDRATADA CH-I PARA ARGAMASSAS | C70: KG | D70: 174.1 | E70: 0.76 | F70: 132.32 | I70: 0
B71: CIMENTO PORTLAND COMPOSTO CP II-32 | C71: KG | D71: 195.86 | E71: 0.4465 | F71: 87.45 | I71: 0
B72: OPERADOR DE BETONEIRA ESTACIONÁRIA/MISTURADOR COM ENCARGOS COMPLEMENTARES | C72: H | D72: 4.5 | E72: 16.245 | F72: 73.1 | I72: 0
B73: BETONEIRA CAPACIDADE NOMINAL DE 400 L, CAPACIDADE DE MISTURA 280 L, MOTOR ELÉTRICO TRIFÁSICO POTÊNCIA DE 2 CV, SEM CARREGADOR - CHP DIURNO. AF_10/2014 | C73: CHP | D73: 1.05 | E73: 1.121 | F73: 1.18 | I73: 0
B74: PÁ CARREGADEIRA SOBRE RODAS, POTÊNCIA LÍQUIDA 128 HP, CAPACIDADE DA CAÇAMBA 1,7 A 2,8 M3, PESO OPERACIONAL 11632 KG - CHP DIURNO. AF_06/2014 | C74: CHP | D74: =ROUND(0.0083*D69,4) -> 0.0096 | E74: 108.148 | F74: =IF(ISNUMBER(E74),E74*$D74,"") -> 1.0382208 | I74: 0
B75: PÁ CARREGADEIRA SOBRE RODAS, POTÊNCIA LÍQUIDA 128 HP, CAPACIDADE DA CAÇAMBA 1,7 A 2,8 M3, PESO OPERACIONAL 11632 KG - CHI DIURNO. AF_06/2014 | C75: CHI | D75: =ROUND(0.0151*D69,4) -> 0.0175 | E75: 40.8405 | F75: =IF(ISNUMBER(E75),E75*$D75,"") -> 0.71470875 | I75: 0
B76: CAMINHÃO BASCULANTE 6 M3 TOCO, PESO BRUTO TOTAL 16.000 KG, CARGA ÚTIL MÁXIMA 11.130 KG, DISTÂNCIA ENTRE EIXOS 5,36 M, POTÊNCIA 185 CV, INCLUSIVE CAÇAMBA METÁLICA - CHP DIURNO. AF_06/2014 | C76: CHP | D76: =ROUND(0.0267*D69,4) -> 0.031 | E76: 96.9665 | F76: =IF(ISNUMBER(E76),E76*$D76,"") -> 3.0059615 | I76: 0
B77: CAMINHÃO BASCULANTE 6 M3 TOCO, PESO BRUTO TOTAL 16.000 KG, CARGA ÚTIL MÁXIMA 11.130 KG, DISTÂNCIA ENTRE EIXOS 5,36 M, POTÊNCIA 185 CV, INCLUSIVE CAÇAMBA METÁLICA - CHI DIURNO. AF_06/2014 | C77: CHI | D77: =ROUND(0.0203*D69,4) -> 0.0235 | E77: 31.6445 | F77: =IF(ISNUMBER(E77),E77*$D77,"") -> 0.74364575 | I77: 0
B78: CAMINHÃO BASCULANTE 6 M3 TOCO, PESO BRUTO TOTAL 16.000 KG, CARGA ÚTIL MÁXIMA 11.130 KG, DISTÂNCIA ENTRE EIXOS 5,36 M, POTÊNCIA 185 CV, INCLUSIVE CAÇAMBA METÁLICA - CHP DIURNO. AF_06/2014 | C78: CHP | D78: =ROUND(0.0139*20*D69,4) -> 0.3225 | E78: 96.9665 | F78: =IF(ISNUMBER(E78),ROUND(E78*$D78,2),"") -> 31.27 | I78: 0
B79: CAMINHÃO BASCULANTE 6 M3 TOCO, PESO BRUTO TOTAL 16.000 KG, CARGA ÚTIL MÁXIMA 11.130 KG, DISTÂNCIA ENTRE EIXOS 5,36 M, POTÊNCIA 185 CV, INCLUSIVE CAÇAMBA METÁLICA - CHI DIURNO. AF_06/2014 | C79: CHI | D79: =ROUND(0.006*20*D69,4) -> 0.1392 | E79: 31.6445 | F79: =IF(ISNUMBER(E79),ROUND(E79*$D79,2),"") -> 4.4 | I79: 0
F80: =IF(ISNUMBER(E80),ROUND(E80*$D80,2),"") ->  | I80: 0
B81: Obs.: Considerando fornecedor de areia a 20 km do Senado Federal. | I81: 0
B82: Obs.2: Inclusão de composições (abertas) Sinapi 100973 e 97914. | I82: 0
I83: 0

Sheet Orçamentária
A1: Execução de serviços comuns de engenharia nas edificações do CASF
A2: PLANILHA ORÇAMENTÁRIA
A3: Data: Outubro de 2020
A5: ITEM | B5: DESCRIÇÃO | C5: UNIDADE | D5: QUANTIDADE | E5: CUSTO UNITÁRIO | F5: CUSTO DIRETO | G5: BDI (%) | H5: PREÇO UNITÁRIO COM BDI | I5: CUSTO TOTAL
B6: ITEM 1 - SERVIÇOS DE ENGENHARIA | F6: =SUBTOTAL(109,F7:F1345) -> 9689132.75 | I6: =SUBTOTAL(109,I7:I1345) -> 11294657.05
A7: SF-00001 | B7: Engenheiro(a) /Arquiteto(a) júnior | C7: hh | D7: 3000 | E7: =OFFSET(INDEX(Composições!A:J,MATCH(Orçamentária!A7,Composições!A:A,0),8),2,0) -> 82.935 | F7: =IF(ISNUMBER(E7),ROUND(D7*E7,2),"") -> 248805 | G7: =BDI!$B$17 -> 0.191 | H7: =IF(ISNUMBER(E7),ROUND(E7*(1+G7),2),"") -> 98.78 | I7: =IF(ISNUMBER(E7),ROUND(H7*D7,2),"") -> 296340
A8: SF-00002 | B8: Mestre de obras | C8: hh | D8: 6000 | E8: =OFFSET(INDEX(Composições!A:J,MATCH(Orçamentária!A8,Composições!A:A,0),8),2,0) -> 25.973 | F8: =IF(ISNUMBER(E8),ROUND(D8*E8,2),"") -> 155838 | G8: =BDI!$B$17 -> 0.191 | H8: =IF(ISNUMBER(E8),ROUND(E8*(1+G8),2),"") -> 30.93 | I8: =IF(ISNUMBER(E8),ROUND(H8*D8,2),"") -> 185580
A9: SF-00003 | B9: Planejamento físico-financeiro | C9: un | D9: 0 | E9: =OFFSET(INDEX(Composições!A:J,MATCH(Orçamentária!A9,Composições!A:A,0),8),2,0) -> 1507.992 | F9: 0 | H9: 1507.99 | I9: 0
A10: SF-00004 | B10: Projetos de segurança do trabalho | C10: un | D10: 10 | E10: =OFFSET(INDEX(Composições!A:J,MATCH(Orçamentária!A10,Composições!A:A,0),8),2,0) -> 2125.39 | F10: 21253.9 | G10: =BDI!$B$17 -> 0.191 | H10: 2531.34 | I10: 25313.4
A11: SF-00005 | B11: Demolição de alvenarias | C11: m3 | D11: 100 | E11: =OFFSET(INDEX(Composições!A:J,MATCH(Orçamentária!A11,Composições!A:A,0),8),2,0) -> 42.1447322 | F11: 4214.47 | G11: =BDI!$B$17 -> 0.191 | H11: 50.19 | I11: 5019
A12: SF-00006 | B12: Demolição de concreto simples | C12: m3 | D12: 20 | E12: =OFFSET(INDEX(Composições!A:J,MATCH(Orçamentária!A12,Composições!A:A,0),8),2,0) -> 236.5766 | F12: 4731.53 | G12: =BDI!$B$17 -> 0.191 | H12: 281.76 | I12: 5635.2
A13: SF-00007 | B13: Demolição de contrapiso | C13: m2 | D13: 400 | E13: =OFFSET(INDEX(Composições!A:J,MATCH(Orçamentária!A13,Composições!A:A,0),8),2,0) -> 11.21855 | F13: 4487.42 | G13: =BDI!$B$17 -> 0.191 | H13: 13.36 | I13: 5344
A14: SF-00008 | B14: Demolição de fechamento ou parede em gesso acartonado | C14: m2 | D14: 200 | E14: =OFFSET(INDEX(Composições!A:J,MATCH(Orçamentária!A14,Composições!A:A,0),8),2,0) -> 5.70091675 | F14: 1140.18 | G14: =BDI!$B$17 -> 0.191 | H14: 6.79 | I14: 1358
A15: SF-00009 | B15: Demolição de forro de gesso | C15: m2 | D15: 3000 | E15: =OFFSET(INDEX(Composições!A:J,MATCH(Orçamentária!A15,Composições!A:A,0),8),2,0) -> 1.24073325 | F15: 3722.2 | G15: =BDI!$B$17 -> 0.191 | H15: 1.48 | I15: 4440
A16: SF-00010 | B16: Demolição de infraestrutura elétrica (eletrodutos, eletrocalhas, cabos) | C16: m | D16: 4000 | E16: =OFFSET(INDEX(Composições!A:J,MATCH(Orçamentária!A16,Composições!A:A,0),8),2,0) -> 2.558483 | F16: 10233.93 | G16: =BDI!$B$17 -> 0.191 | H16: 3.05 | I16: 12200
A17: SF-00011 | B17: Demolição de revestimento cerâmico, granito, mármore ou granitina | C17: m2 | D17: 340 | E17: =OFFSET(INDEX(Composições!A:J,MATCH(Orçamentária!A17,Composições!A:A,0),8),2,0) -> 9.3210352 | F17: 3169.15 | G17: =BDI!$B$17 -> 0.191 | H17: 11.1 | I17: 3774
A18: SF-00012 | B18: Demolição de revestimento em argamassa | C18: m2 | D18: 1000 | E18: =OFFSET(INDEX(Composições!A:J,MATCH(Orçamentária!A18,Composições!A:A,0),8),2,0) -> 2.49980625 | F18: 2499.81 | G18: =BDI!$B$17 -> 0.191 | H18: 2.98 | I18: 2980
A19: SF-00013 | B19: Demolição de tubulação hidrossanitária embutida com conexões e acessórios | C19: m | D19: 100 | E19: =OFFSET(INDEX(Composições!A:J,MATCH(Orçamentária!A19,Composições!A:A,0),8),2,0) -> 0.37566135 | F19: 37.57 | G19: =BDI!$B$17 -> 0.191 | H19: 0.45 | I19: 45
A20: SF-00014 | B20: Demolição em concreto armado | C20: m3 | D20: 10 | E20: =OFFSET(INDEX(Composições!A:J,MATCH(Orçamentária!A20,Composições!A:A,0),8),2,0) -> 212.4172213 | F20: 2124.17 | G20: =BDI!$B$17 -> 0.191 | H20: 252.99 | I20: 2529.9
A21: SF-00015 | B21: Locação de caçambas | C21: un | D21: 110 | E21: 320.5 | F21: 35255 | G21: =BDI!$G$17 -> 0.1126 | H21: 356.59 | I21: 39224.9
A22: SF-00016 | B22: Remoção de armários | C22: m2 | D22: 240 | E22: =OFFSET(INDEX(Composições!A:J,MATCH(Orçamentária!A22,Composições!A:A,0),8),2,0) -> 13.17365 | F22: 3161.68 | G22: =BDI!$B$17 -> 0.191 | H22: 15.69 | I22: 3765.6
A23: SF-00017 | B23: Remoção de bancadas | C23: m2 | D23: 40 | E23: =OFFSET(INDEX(Composições!A:J,MATCH(Orçamentária!A23,Composições!A:A,0),8),2,0) -> 19.28405 | F23: 771.36 | G23: =BDI!$B$17 -> 0.191 | H23: 22.97 | I23: 918.8
A24: SF-00018 | B24: Remoção de batentes de madeira | C24: un | D24: 50 | E24: =OFFSET(INDEX(Composições!A:J,MATCH(Orçamentária!A24,Composições!A:A,0),8),2,0) -> 7.27928 | F24: 363.96 | G24: =BDI!$B$17 -> 0.191 | H24: 8.67 | I24: 433.5
A25: SF-00019 | B25: Remoção de canaleta em alumínio | C25: m | D25: 200 | E25: =OFFSET(INDEX(Composições!A:J,MATCH(Orçamentária!A25,Composições!A:A,0),8),2,0) -> 4.0477125 | F25: 809.54 | G25: =BDI!$B$17 -> 0.191 | H25: 4.82 | I25: 964
A26: SF-00020 | B26: Remoção de carpete | C26: m2 | D26: 300 | E26: =OFFSET(INDEX(Composições!A:J,MATCH(Orçamentária!A26,Composições!A:A,0),8),2,0) -> 1.81982 | F26: 545.95 | G26: =BDI!$B$17 -> 0.191 | H26: 2.17 | I26: 651
A27: SF-00021 | B27: Remoção de cortinas | C27: m | D27: 50 | E27: =OFFSET(INDEX(Composições!A:J,MATCH(Orçamentária!A27,Composições!A:A,0),8),2,0) -> 3.17838555 | F27: 158.92 | G27: =BDI!$B$17 -> 0.191 | H27: 3.79 | I27: 189.5
A28: SF-00022 | B28: Remoção de difusores, grelhas e acessórios de climatização | C28: un | D28: 120 | E28: =OFFSET(INDEX(Composições!A:J,MATCH(Orçamentária!A28,Composições!A:A,0),8),2,0) -> 19.893 | F28: 2387.16 | G28: =BDI!$B$17 -> 0.191 | H28: 23.69 | I28: 2842.8
A29: SF-00023 | B29: Remoção de divisória de mármore ou granito | C29: m2 | D29: 40 | E29: =OFFSET(INDEX(Composições!A:J,MATCH(Orçamentária!A29,Composições!A:A,0),8),2,0) -> 30.0789 | F29: 1203.16 | G29: =BDI!$B$17 -> 0.191 | H29: 35.82 | I29: 1432.8
A30: SF-00024 | B30: Remoção de divisórias de MDF e gesso acartonado | C30: m2 | D30: 1500 | E30: =OFFSET(INDEX(Composições!A:J,MATCH(Orçamentária!A30,Composições!A:A,0),8),2,0) -> 25.935 | F30: 38902.5 | G30: =BDI!$B$17 -> 0.191 | H30: 30.89 | I30: 46335
A31: SF-00025 | B31: Remoção de dutos/tubulações | C31: m | D31: 1500 | E31: =OFFSET(INDEX(Composições!A:J,MATCH(Orçamentária!A31,Composições!A:A,0),8),2,0) -> 8.5369375 | F31: 12805.41 | G31: =BDI!$B$17 -> 0.191 | H31: 10.17 | I31: 15255
A32: SF-00026 | B32: Remoção de esquadrias metálicas | C32: m2 | D32: 70 | E32: =OFFSET(INDEX(Composições!A:J,MATCH(Orçamentária!A32,Composições!A:A,0),8),2,0) -> 9.0991 | F32: 636.94 | G32: =BDI!$B$17 -> 0.191 | H32: 10.84 | I32: 758.8
A33: SF-00027 | B33: Remoção de exaustor | C33: un | D33: 15 | E33: =OFFSET(INDEX(Composições!A:J,MATCH(Orçamentária!A33,Composições!A:A,0),8),2,0) -> 6.57495 | F33: 98.62 | G33: =BDI!$B$17 -> 0.191 | H33: 7.83 | I33: 117.45
A34: SF-00028 | B34: Remoção de fechadura/puxador de porta | C34: un | D34: 101 | E34: =OFFSET(INDEX(Composições!A:J,MATCH(Orçamentária!A34,Composições!A:A,0),8),2,0) -> 5.403125 | F34: 545.72 | G34: =BDI!$B$17 -> 0.191 | H34: 6.44 | I34: 650.44
A35: SF-00029 | B35: Remoção de folha de porta e dobradiças | C35: un | D35: 82 | E35: =OFFSET(INDEX(Composições!A:J,MATCH(Orçamentária!A35,Composições!A:A,0),8),2,0) -> 6.9938278 | F35: 573.49 | G35: =BDI!$B$17 -> 0.191 | H35: 8.33 | I35: 683.06
A36: SF-00030 | B36: Remoção de laminado melamínico (LDAP), em PVC ou vinílico | C36: m2 | D36: 1000 | E36: =OFFSET(INDEX(Composições!A:J,MATCH(Orçamentária!A36,Composições!A:A,0),8),2,0) -> 16.37838 | F36: 16378.38 | G36: =BDI!$B$17 -> 0.191 | H36: 19.51 | I36: 19510
A37: SF-00031 | B37: Remoção de louças | C37: un | D37: 80 | E37: =OFFSET(INDEX(Composições!A:J,MATCH(Orçamentária!A37,Composições!A:A,0),8),2,0) -> 9.26557895 | F37: 741.25 | G37: =BDI!$B$17 -> 0.191 | H37: 11.04 | I37: 883.2
A38: SF-00032 | B38: Remoção de luminária | C38: un | D38: 500 | E38: =OFFSET(INDEX(Composições!A:J,MATCH(Orçamentária!A38,Composições!A:A,0),8),2,0) -> 4.8821165 | F38: 2441.06 | G38: =BDI!$B$17 -> 0.191 | H38: 5.81 | I38: 2905
A39: SF-00033 | B39: Remoção de metais e acessórios | C39: un | D39: 300 | E39: =OFFSET(INDEX(Composições!A:J,MATCH(Orçamentária!A39,Composições!A:A,0),8),2,0) -> 6.7565501 | F39: 2026.97 | G39: =BDI!$B$17 -> 0.191 | H39: 8.05 | I39: 2415
A40: SF-00034 | B40: Remoção de painéis de vidro temperado | C40: m2 | D40: 586 | E40: =OFFSET(INDEX(Composições!A:J,MATCH(Orçamentária!A40,Composições!A:A,0),8),2,0) -> 13.210225 | F40: 7741.19 | G40: =BDI!$B$17 -> 0.191 | H40: 15.73 | I40: 9217.78
A41: SF-00035 | B41: Remoção de película | C41: m2 | D41: 196 | E41: =OFFSET(INDEX(Composições!A:J,MATCH(Orçamentária!A41,Composições!A:A,0),8),2,0) -> 8.0712 | F41: 1581.96 | G41: =BDI!$B$17 -> 0.191 | H41: 9.61 | I41: 1883.56
A42: SF-00036 | B42: Remoção de persianas | C42: m | D42: 400 | E42: =OFFSET(INDEX(Composições!A:J,MATCH(Orçamentária!A42,Composições!A:A,0),8),2,0) -> 3.17838555 | F42: 1271.35 | G42: =BDI!$B$17 -> 0.191 | H42: 3.79 | I42: 1516
A43: SF-00037 | B43: Remoção de pintura ou textura | C43: m2 | D43: 4000 | E43: =OFFSET(INDEX(Composições!A:J,MATCH(Orçamentária!A43,Composições!A:A,0),8),2,0) -> 6.4106 | F43: 25642.4 | G43: =BDI!$B$17 -> 0.191 | H43: 7.64 | I43: 30560
A44: SF-00038 | B44: Remoção de placas de forro | C44: m2 | D44: 500 | E44: =OFFSET(INDEX(Composições!A:J,MATCH(Orçamentária!A44,Composições!A:A,0),8),2,0) -> 3.72219975 | F44: 1861.1 | G44: =BDI!$B$17 -> 0.191 | H44: 4.43 | I44: 2215
A45: SF-00039 | B45: Remoção de quadros de elétricos ou de telecomunicações | C45: un | D45: 30 | E45: =OFFSET(INDEX(Composições!A:J,MATCH(Orçamentária!A45,Composições!A:A,0),8),2,0) -> 57.22325 | F45: 1716.7 | G45: =BDI!$B$17 -> 0.191 | H45: 68.15 | I45: 2044.5
A46: SF-00040 | B46: Remoção de revestimento acústico | C46: m2 | D46: 300 | E46: =OFFSET(INDEX(Composições!A:J,MATCH(Orçamentária!A46,Composições!A:A,0),8),2,0) -> 3.2053 | F46: 961.59 | G46: =BDI!$B$17 -> 0.191 | H46: 3.82 | I46: 1146
A47: SF-00041 | B47: Remoção de rodapé/rodabanca de mármore ou granito | C47: m | D47: 350 | E47: =OFFSET(INDEX(Composições!A:J,MATCH(Orçamentária!A47,Composições!A:A,0),8),2,0) -> 1.4007161 | F47: 490.25 | G47: =BDI!$B$17 -> 0.191 | H47: 1.67 | I47: 584.5
A48: SF-00042 | B48: Remoção de rodapés de madeira | C48: m2 | D48: 10 | E48: =OFFSET(INDEX(Composições!A:J,MATCH(Orçamentária!A48,Composições!A:A,0),8),2,0) -> 5.7942875 | F48: 57.94 | G48: =BDI!$B$17 -> 0.191 | H48: 6.9 | I48: 69
A49: SF-00043 | B49: Remoção de soleira de mármore ou granito | C49: m | D49: 20 | E49: =OFFSET(INDEX(Composições!A:J,MATCH(Orçamentária!A49,Composições!A:A,0),8),2,0) -> 8.814575 | F49: 176.29 | G49: =BDI!$B$17 -> 0.191 | H49: 10.5 | I49: 210
A50: SF-00044 | B50: Remoção de split/fancolete/ACJ (equipamento unitário) | C50: un | D50: 150 | E50: =OFFSET(INDEX(Composições!A:J,MATCH(Orçamentária!A50,Composições!A:A,0),8),2,0) -> 39.8335 | F50: 5975.03 | G50: =BDI!$B$17 -> 0.191 | H50: 47.44 | I50: 7116
A51: SF-00045 | B51: Remoção de vidro comum / espelho | C51: m2 | D51: 60 | E51: =OFFSET(INDEX(Composições!A:J,MATCH(Orçamentária!A51,Composições!A:A,0),8),2,0) -> 13.2943 | F51: 797.66 | G51: =BDI!$B$17 -> 0.191 | H51: 15.83 | I51: 949.8
A52: SF-00046 | B52: Retirada de entulhos | C52: m3 | D52: 410 | E52: =OFFSET(INDEX(Composições!A:J,MATCH(Orçamentária!A52,Composições!A:A,0),8),2,0) -> 16.0265 | F52: 6570.87 | G52: =BDI!$B$17 -> 0.191 | H52: 19.09 | I52: 7826.9
A53: SF-00047 | B53: Absorvedor de energia para linha de vida | C53: un | D53: 5 | E53: 688.63 | F53: 3443.15 | G53: =BDI!$B$17 -> 0.191 | H53: 820.16 | I53: 4100.8
A54: SF-00048 | B54: Andaime fachadeiro | C54: m2 x mês | D54: 400 | E54: =OFFSET(INDEX(Composições!A:J,MATCH(Orçamentária!A54,Composições!A:A,0),8),2,0) -> 3.7905 | F54: 1516.2 | G54: =BDI!$B$17 -> 0.191 | H54: 4.51 | I54: 1804
A55: SF-00049 | B55: Andaime tubular (aluguel/mês) | C55: m x mês | D55: 70 | E55: =OFFSET(INDEX(Composições!A:J,MATCH(Orçamentária!A55,Composições!A:A,0),8),2,0) -> 11.4 | F55: 798 | G55: =BDI!$B$17 -> 0.191 | H55: 13.58 | I55: 950.6
A56: SF-00050 | B56: Cabo de aço com 8 mm de diâmetro galvanizado para linha de vida | C56: m | D56: 280 | E56: 19.08 | F56: 5342.4 | G56: =BDI!$B$17 -> 0.191 | H56: 22.72 | I56: 6361.6
A57: SF-00051 | B57: Corda de poliamida 12 mm tipo bombeiro, para trabalho em altura | C57: m | D57: 84 | E57: =OFFSET(INDEX(Composições!A:J,MATCH(Orçamentária!A57,Composições!A:A,0),8),2,0) -> 4.41978 | F57: 371.26 | G57: =BDI!$B$17 -> 0.191 | H57: 5.26 | I57: 441.84
A58: SF-00052 | B58: Ensaio de ponto de ancoragem existente | C58: un | D58: 20 | E58: 351.79 | F58: 7035.8 | G58: =BDI!$G$17 -> 0.1126 | H58: 391.4 | I58: 7828
A59: SF-00053 | B59: Escadas de acesso para andaime tubular | C59: m x mês | D59: 0
A60: SF-00054 | B60: Esticador de cabo de aço | C60: un | D60: 0
A61: SF-00055 | B61: Guarda-corpo com rodapé para andaime tubular | C61: m x mês | D61: 0
A62: SF-00056 | B62: Indicador de tensão | C62: un | D62: 0
A63: SF-00057 | B63: Isolamento de obra com tela plástica com malha de 5mm e estrutura de madeira pontaleteada | C63: m2 | D63: 200 | E63: =OFFSET(INDEX(Composições!A:J,MATCH(Orçamentária!A63,Composições!A:A,0),8),2,0) -> 17.6035 | F63: 3520.7 | G63: =BDI!$B$17 -> 0.191 | H63: 20.97 | I63: 4194
A64: SF-00058 | B64: Suporte intermediário curvo para linha de vida | C64: un | D64: 5 | E64: 600 | F64: 3000 | G64: =BDI!$B$17 -> 0.191 | H64: 714.6 | I64: 3573
A65: SF-00059 | B65: Kit de linha de vida para escada de marinheiro | C65: un | D65: 0
A66: SF-00060 | B66: Kit para montagem de dois olhais | C66: un | D66: 5 | E66: 224.72 | F66: 1123.6 | G66: =BDI!$B$17 -> 0.191 | H66: 267.64 | I66: 1338.2
A67: SF-00061 | B67: Manilha com travamento por porca e cupilha | C67: un | D67: 14 | E67: 67.42 | F67: 943.88 | G67: =BDI!$B$17 -> 0.191 | H67: 80.3 | I67: 1124.2
A68: SF-00062 | B68: Pilar de ancoragem para linha de vida | C68: un | D68: 14 | E68: 635.87 | F68: 8902.18 | G68: =BDI!$B$17 -> 0.191 | H68: 757.32 | I68: 10602.48
A69: SF-00063 | B69: Piso metálico para andaime tubular | C69: m2 x mês | D69: 0
A70: SF-00064 | B70: Placa de ancoragem para extremidade | C70: un | D70: 0
A71: SF-00065 | B71: Placa de ancoragem para montagem no pilar | C71: un | D71: 10 | E71: 224.72 | F71: 2247.2 | G71: =BDI!$B$17 -> 0.191 | H71: 267.64 | I71: 2676.4
A72: SF-00066 | B72: Ponto de ancoragem | C72: un | D72: 25 | E72: 405.54 | F72: =IF(ISNUMBER(E72),ROUND(D72*E72,2),"") -> 10138.5 | G72: =BDI!$G$17 -> 0.1126 | H72: =IF(ISNUMBER(E72),ROUND(E72*(1+G72),2),"") -> 451.2 | I72: =IF(ISNUMBER(E72),ROUND(H72*D72,2),"") -> 11280
A73: SF-00067 | B73: Sapatas e rodízios para andaime tubular | C73: conj x mês | D73: 0
A74: SF-00068 | B74: Sistema Guarda-corpo-Rodapé (GcR) metálico | C74: m x mês | D74: 280 | E74: 9 | F74: 2520 | G74: =BDI!$G$17 -> 0.1126 | H74: 10.01 | I74: 2802.8
A75: SF-00069 | B75: Suporte intermediário para linha de vida | C75: un | D75: 15 | E75: 370.5 | F75: 5557.5 | G75: =BDI!$B$17 -> 0.191 | H75: 441.27 | I75: 6619.05
A76: SF-00070 | B76: Tapume | C76: m2 | D76: 300 | E76: =OFFSET(INDEX(Composições!A:J,MATCH(Orçamentária!A76,Composições!A:A,0),8),2,0) -> 67.0538215 | F76: 20116.15 | G76: =BDI!$B$17 -> 0.191 | H76: 79.86 | I76: 23958
A77: SF-00071 | B77: Trole para linha de vida horizontal | C77: un | D77: 5 | E77: 700 | F77: 3500 | G77: =BDI!$B$17 -> 0.191 | H77: 833.7 | I77: 4168.5
A78: SF-00072 | B78: Trole para travaqueda retrátil | C78: un | D78: 0
A79: SF-00073 | B79: Limpeza final de obra | C79: m2 | D79: 10000 | E79: =OFFSET(INDEX(Composições!A:J,MATCH(Orçamentária!A79,Composições!A:A,0),8),2,0) -> 1.955233 | F79: 19552.33 | G79: =BDI!$B$17 -> 0.191 | H79: 2.33 | I79: 23300
A80: SF-00074 | B80: Abertura/fechamento rasgo em alvenaria | C80: m | D80: 3000 | E80: =OFFSET(INDEX(Composições!A:J,MATCH(Orçamentária!A80,Composições!A:A,0),8),2,0) -> 16.03194589 | F80: 48095.84 | G80: =BDI!$B$17 -> 0.191 | H80: 19.09 | I80: 57270
A81: SF-00075 | B81: Furo em concreto de até 75mm de diâmetro | C81: un | D81: 25 | E81: =OFFSET(INDEX(Composições!A:J,MATCH(Orçamentária!A81,Composições!A:A,0),8),2,0) -> 80.3106535 | F81: 2007.77 | G81: =BDI!$B$17 -> 0.191 | H81: 95.65 | I81: 2391.25
A82: SF-00076 | B82: Furo em concreto para diâmetros maiores que 75mm | C82: un | D82: 40 | E82: =OFFSET(INDEX(Composições!A:J,MATCH(Orçamentária!A82,Composições!A:A,0),8),2,0) -> 102.5739795 | F82: 4102.96 | G82: =BDI!$B$17 -> 0.191 | H82: 122.17 | I82: 4886.8
A83: SF-00077 | B83: Concreto virado em betoneira, fck = 15 MPa | C83: m3 | D83: 10 | E83: =OFFSET(INDEX(Composições!A:J,MATCH(Orçamentária!A83,Composições!A:A,0),8),2,0) -> 522.6980939 | F83: 5226.98 | G83: =BDI!$B$17 -> 0.191 | H83: 622.53 | I83: 6225.3
A84: SF-00078 | B84: Concreto virado em betoneira, fck = 25MPa | C84: m3 | D84: 10 | E84: =OFFSET(INDEX(Composições!A:J,MATCH(Orçamentária!A84,Composições!A:A,0),8),2,0) -> 553.1676969 | F84: 5531.68 | G84: =BDI!$B$17 -> 0.191 | H84: 658.82 | I84: 6588.2
A85: SF-00079 | B85: Escoramento metálico | C85: m2 x mês | D85: 100 | E85: =OFFSET(INDEX(Composições!A:J,MATCH(Orçamentária!A85,Composições!A:A,0),8),2,0) -> 12.122475 | F85: 1212.25 | G85: =BDI!$B$17 -> 0.191 | H85: 14.44 | I85: 1444
A86: SF-00080 | B86: Estrutura metálica em aço | C86: kg | D86: 0 | E86: =OFFSET(INDEX(Composições!A:J,MATCH(Orçamentária!A86,Composições!A:A,0),8),2,0) -> 10.8532275 | F86: 0 | H86: 10.85 | I86: 0
A87: SF-00081 | B87: Forma para estruturas de concreto | C87: m2 | D87: 100 | E87: =OFFSET(INDEX(Composições!A:J,MATCH(Orçamentária!A87,Composições!A:A,0),8),2,0) -> 111.5996247 | F87: 11159.96 | G87: =BDI!$B$17 -> 0.191 | H87: 132.92 | I87: 13292
A88: SF-00082 | B88: Verga/contraverga/cinta em bloco de concreto canaleta 11,5 x 19 x 39 cm | C88: m | D88: 50 | E88: =OFFSET(INDEX(Composições!A:J,MATCH(Orçamentária!A88,Composições!A:A,0),8),2,0) -> 25.57928472 | F88: 1278.96 | G88: =BDI!$B$17 -> 0.191 | H88: 30.46 | I88: 1523
A89: SF-00083 | B89: Impermeabilização de superfície com revestimento bicomponente semi flexível | C89: m2 | D89: 500 | E89: =OFFSET(INDEX(Composições!A:J,MATCH(Orçamentária!A89,Composições!A:A,0),8),2,0) -> 21.060626 | F89: 10530.31 | G89: =BDI!$B$17 -> 0.191 | H89: 25.08 | I89: 12540
A90: SF-00084 | B90: Alvenaria de vedação | C90: m2 | D90: 500 | E90: =OFFSET(INDEX(Composições!A:J,MATCH(Orçamentária!A90,Composições!A:A,0),8),2,0) -> 65.24016038 | F90: 32620.08 | G90: =BDI!$B$17 -> 0.191 | H90: 77.7 | I90: 38850
A91: SF-00085 | B91: Fechamento ou shaft em gesso acartonado tipo drywall | C91: m2 | D91: 50 | E91: =OFFSET(INDEX(Composições!A:J,MATCH(Orçamentária!A91,Composições!A:A,0),8),2,0) -> 47.76204705 | F91: 2388.1 | G91: =BDI!$B$17 -> 0.191 | H91: 56.88 | I91: 2844
A92: SF-00086 | B92: Fixação (encunhamento) de Alvenaria de Vedação | C92: m | D92: 300 | E92: =OFFSET(INDEX(Composições!A:J,MATCH(Orçamentária!A92,Composições!A:A,0),8),2,0) -> 22.01297999 | F92: 6603.89 | G92: =BDI!$B$17 -> 0.191 | H92: 26.22 | I92: 7866
A93: SF-00087 | B93: Parede em gesso acartonado (drywall) | C93: m2 | D93: 1000 | E93: =OFFSET(INDEX(Composições!A:J,MATCH(Orçamentária!A93,Composições!A:A,0),8),2,0) -> 75.85988165 | F93: 75859.88 | G93: =BDI!$B$17 -> 0.191 | H93: 90.35 | I93: 90350
A94: SF-00088 | B94: Reparos superficiais em painéis de gesso acartonado | C94: m2 | D94: 20 | E94: =OFFSET(INDEX(Composições!A:J,MATCH(Orçamentária!A94,Composições!A:A,0),8),2,0) -> 5.3863252 | F94: 107.73 | G94: =BDI!$B$17 -> 0.191 | H94: 6.42 | I94: 128.4
A95: SF-00089 | B95: Sóculo h=10 cm | C95: m2 | D95: 40 | E95: =OFFSET(INDEX(Composições!A:J,MATCH(Orçamentária!A95,Composições!A:A,0),8),2,0) -> 69.78405276 | F95: 2791.36 | G95: =BDI!$B$17 -> 0.191 | H95: 83.11 | I95: 3324.4
A96: SF-00090 | B96: Chapisco colante industrializado em vigas e pilares | C96: m2 | D96: 40 | E96: =OFFSET(INDEX(Composições!A:J,MATCH(Orçamentária!A96,Composições!A:A,0),8),2,0) -> 8.791489962 | F96: 351.66 | G96: =BDI!$B$17 -> 0.191 | H96: 10.47 | I96: 418.8
A97: SF-00091 | B97: Chapisco com argamassa traço 1:3 | C97: m2 | D97: 1000 | E97: =OFFSET(INDEX(Composições!A:J,MATCH(Orçamentária!A97,Composições!A:A,0),8),2,0) -> 3.775531848 | F97: 3775.53 | G97: =BDI!$B$17 -> 0.191 | H97: 4.5 | I97: 4500
A98: SF-00092 | B98: Gesso cola | C98: m2 | D98: 440 | E98: =OFFSET(INDEX(Composições!A:J,MATCH(Orçamentária!A98,Composições!A:A,0),8),2,0) -> 12.87462 | F98: 5664.83 | G98: =BDI!$B$17 -> 0.191 | H98: 15.33 | I98: 6745.2
A99: SF-00093 | B99: Reboco com argamassa industrializada e=2,0 cm | C99: m2 | D99: 1000 | E99: =OFFSET(INDEX(Composições!A:J,MATCH(Orçamentária!A99,Composições!A:A,0),8),2,0) -> 32.7836697 | F99: 32783.67 | G99: =BDI!$B$17 -> 0.191 | H99: 39.05 | I99: 39050
A100: SF-00094 | B100: Regularização com argamassa industrializada e=0,5 cm | C100: m2 | D100: 200 | E100: =OFFSET(INDEX(Composições!A:J,MATCH(Orçamentária!A100,Composições!A:A,0),8),2,0) -> 11.37685657 | F100: 2275.37 | G100: =BDI!$B$17 -> 0.191 | H100: 13.55 | I100: 2710
A101: SF-00095 | B101: Tratamento de trincas superficiais | C101: m | D101: 100 | E101: =OFFSET(INDEX(Composições!A:J,MATCH(Orçamentária!A101,Composições!A:A,0),8),2,0) -> 21.8973594 | F101: 2189.74 | G101: =BDI!$B$17 -> 0.191 | H101: 26.08 | I101: 2608
A102: SF-00096 | B102: Aplicação de fundo selador base água | C102: m2 | D102: 5400 | E102: =OFFSET(INDEX(Composições!A:J,MATCH(Orçamentária!A102,Composições!A:A,0),8),2,0) -> 4.0886875 | F102: 22078.91 | G102: =BDI!$B$17 -> 0.191 | H102: 4.87 | I102: 26298
A103: SF-00097 | B103: Fundo anticorrosivo e de aderência (base água) | C103: m2 | D103: 400 | E103: =OFFSET(INDEX(Composições!A:J,MATCH(Orçamentária!A103,Composições!A:A,0),8),2,0) -> 15.0359076 | F103: 6014.36 | G103: =BDI!$B$17 -> 0.191 | H103: 17.91 | I103: 7164
A104: SF-00098 | B104: Massa acrílica | C104: m2 | D104: 1000 | E104: =OFFSET(INDEX(Composições!A:J,MATCH(Orçamentária!A104,Composições!A:A,0),8),2,0) -> 16.2781455 | F104: 16278.15 | G104: =BDI!$B$17 -> 0.191 | H104: 19.39 | I104: 19390
A105: SF-00099 | B105: Massa corrida | C105: m2 | D105: 3000 | E105: =OFFSET(INDEX(Composições!A:J,MATCH(Orçamentária!A105,Composições!A:A,0),8),2,0) -> 12.635437 | F105: 37906.31 | G105: =BDI!$B$17 -> 0.191 | H105: 15.05 | I105: 45150
A106: SF-00100 | B106: Pintura com tinta látex acrílica Premium (paredes) | C106: m2 | D106: 9000 | E106: =OFFSET(INDEX(Composições!A:J,MATCH(Orçamentária!A106,Composições!A:A,0),8),2,0) -> 11.9082025 | F106: 107173.82 | G106: =BDI!$B$17 -> 0.191 | H106: 14.18 | I106: 127620
A107: SF-00101 | B107: Pintura em verniz sintético | C107: m2 | D107: 300 | E107: =OFFSET(INDEX(Composições!A:J,MATCH(Orçamentária!A107,Composições!A:A,0),8),2,0) -> 18.07415 | F107: 5422.25 | G107: =BDI!$B$17 -> 0.191 | H107: 21.53 | I107: 6459
A108: SF-00102 | B108: Pintura esmalte acetinado (metais e madeiras) | C108: m2 | D108: 500 | E108: =OFFSET(INDEX(Composições!A:J,MATCH(Orçamentária!A108,Composições!A:A,0),8),2,0) -> 16.41906 | F108: 8209.53 | G108: =BDI!$B$17 -> 0.191 | H108: 19.56 | I108: 9780
A109: SF-00103 | B109: Pintura tinta látex acrílica standard (tetos) | C109: m2 | D109: 6000 | E109: =OFFSET(INDEX(Composições!A:J,MATCH(Orçamentária!A109,Composições!A:A,0),8),2,0) -> 13.5261665 | F109: 81157 | G109: =BDI!$B$17 -> 0.191 | H109: 16.11 | I109: 96660
A110: SF-00104 | B110: Cerâmica para revestimento de superfícies internas ou externas – Linha Administrativa | C110: m2 | D110: 150 | E110: =OFFSET(INDEX(Composições!A:J,MATCH(Orçamentária!A110,Composições!A:A,0),8),2,0) -> 63.03953 | F110: 9455.93 | G110: =BDI!$B$17 -> 0.191 | H110: 75.08 | I110: 11262
A111: SF-00105 | B111: Contrapiso em argamassa | C111: m2 | D111: 60 | E111: =OFFSET(INDEX(Composições!A:J,MATCH(Orçamentária!A111,Composições!A:A,0),8),2,0) -> 45.25182098 | F111: 2715.11 | G111: =BDI!$B$17 -> 0.191 | H111: 53.89 | I111: 3233.4
A112: SF-00106 | B112: Contrapiso em argamassa (e=2cm) ou Regularização de contrapiso existente | C112: m2 | D112: 550 | E112: =OFFSET(INDEX(Composições!A:J,MATCH(Orçamentária!A112,Composições!A:A,0),8),2,0) -> 30.97904506 | F112: 17038.47 | G112: =BDI!$B$17 -> 0.191 | H112: 36.9 | I112: 20295
A113: SF-00107 | B113: Granito cinza andorinha para piso | C113: m2 | D113: 800 | E113: =OFFSET(INDEX(Composições!A:J,MATCH(Orçamentária!A113,Composições!A:A,0),8),2,0) -> 220.630839 | F113: 176504.67 | G113: =BDI!$B$17 -> 0.191 | H113: 262.77 | I113: 210216
A114: SF-00108 | B114: Granito Cinza Andorinha para rodapé | C114: m2 | D114: 200 | E114: =OFFSET(INDEX(Composições!A:J,MATCH(Orçamentária!A114,Composições!A:A,0),8),2,0) -> 604.339171 | F114: 120867.83 | G114: =BDI!$B$17 -> 0.191 | H114: 719.77 | I114: 143954
A115: SF-00109 | B115: Granito Cinza Andorinha para soleira e peitoril | C115: m2 | D115: 20 | E115: =OFFSET(INDEX(Composições!A:J,MATCH(Orçamentária!A115,Composições!A:A,0),8),2,0) -> 407.747672 | F115: 8154.95 | G115: =BDI!$B$17 -> 0.191 | H115: 485.63 | I115: 9712.6
A116: SF-00110 | B116: Granito Preto São Gabriel para piso | C116: m2 | D116: 30 | E116: =OFFSET(INDEX(Composições!A:J,MATCH(Orçamentária!A116,Composições!A:A,0),8),2,0) -> 299.696439 | F116: 8990.89 | G116: =BDI!$B$17 -> 0.191 | H116: 356.94 | I116: 10708.2
A117: SF-00111 | B117: Granito Preto São Gabriel para rodapé | C117: m2 | D117: 3 | E117: =OFFSET(INDEX(Composições!A:J,MATCH(Orçamentária!A117,Composições!A:A,0),8),2,0) -> 667.594221 | F117: 2002.78 | G117: =BDI!$B$17 -> 0.191 | H117: 795.1 | I117: 2385.3
A118: SF-00112 | B118: Granito Preto São Gabriel para soleira e peitoril | C118: m2 | D118: 2 | E118: =OFFSET(INDEX(Composições!A:J,MATCH(Orçamentária!A118,Composições!A:A,0),8),2,0) -> 465.8812959 | F118: 931.76 | G118: =BDI!$B$17 -> 0.191 | H118: 554.86 | I118: 1109.72
A119: SF-00113 | B119: Instalação de rodapé de madeira reaproveitado | C119: m | D119: 70 | E119: =OFFSET(INDEX(Composições!A:J,MATCH(Orçamentária!A119,Composições!A:A,0),8),2,0) -> 12.25329285 | F119: 857.73 | G119: =BDI!$B$17 -> 0.191 | H119: 14.59 | I119: 1021.3
A120: SF-00114 | B120: Mármore Bege Bahia para piso e parede | C120: m2 | D120: 10 | E120: =OFFSET(INDEX(Composições!A:J,MATCH(Orçamentária!A120,Composições!A:A,0),8),2,0) -> 276.902439 | F120: 2769.02 | G120: =BDI!$B$17 -> 0.191 | H120: 329.79 | I120: 3297.9
A121: SF-00115 | B121: Mármore Branco Especial para piso e parede | C121: m2 | D121: 40 | E121: =OFFSET(INDEX(Composições!A:J,MATCH(Orçamentária!A121,Composições!A:A,0),8),2,0) -> 378.541639 | F121: 15141.67 | G121: =BDI!$B$17 -> 0.191 | H121: 450.84 | I121: 18033.6
A122: SF-00116 | B122: Rodapé de madeira | C122: m | D122: 70 | E122: =OFFSET(INDEX(Composições!A:J,MATCH(Orçamentária!A122,Composições!A:A,0),8),2,0) -> 22.21361535 | F122: 1554.95 | G122: =BDI!$B$17 -> 0.191 | H122: 26.46 | I122: 1852.2
A123: SF-00117 | B123: Acabamento abaulado em placas de granito ou mármore reaproveitadas | C123: m | D123: 20 | E123: =OFFSET(INDEX(Composições!A:J,MATCH(Orçamentária!A123,Composições!A:A,0),8),2,0) -> 36.157 | F123: 723.14 | G123: =BDI!$B$17 -> 0.191 | H123: 43.06 | I123: 861.2
A124: SF-00118 | B124: Acabamento em meia esquadria em placas de granito ou mármore reaproveitadas | C124: m | D124: 20 | E124: =OFFSET(INDEX(Composições!A:J,MATCH(Orçamentária!A124,Composições!A:A,0),8),2,0) -> 31.637375 | F124: 632.75 | G124: =BDI!$B$17 -> 0.191 | H124: 37.68 | I124: 753.6
A125: SF-00119 | B125: Acabamento reto em placas de granito ou mármore reaproveitadas | C125: m | D125: 20 | E125: =OFFSET(INDEX(Composições!A:J,MATCH(Orçamentária!A125,Composições!A:A,0),8),2,0) -> 18.0785 | F125: 361.57 | G125: =BDI!$B$17 -> 0.191 | H125: 21.53 | I125: 430.6
A126: SF-00120 | B126: Corte de peça de granito ou mármore reaproveitada | C126: m | D126: 20 | E126: =OFFSET(INDEX(Composições!A:J,MATCH(Orçamentária!A126,Composições!A:A,0),8),2,0) -> 22.598125 | F126: 451.96 | G126: =BDI!$B$17 -> 0.191 | H126: 26.91 | I126: 538.2
A127: SF-00121 | B127: Corte em placas de granito ou mármore reaproveitadas, para instalação de cubas | C127: un | D127: 20 | E127: =OFFSET(INDEX(Composições!A:J,MATCH(Orçamentária!A127,Composições!A:A,0),8),2,0) -> 69.597 | F127: 1391.94 | G127: =BDI!$B$17 -> 0.191 | H127: 82.89 | I127: 1657.8
A128: SF-00122 | B128: Furo em placas de granito ou mármore reaproveitadas, para instalação de torneira ou misturador | C128: un | D128: 20 | E128: =OFFSET(INDEX(Composições!A:J,MATCH(Orçamentária!A128,Composições!A:A,0),8),2,0) -> 10.431 | F128: 208.62 | G128: =BDI!$B$17 -> 0.191 | H128: 12.42 | I128: 248.4
A129: SF-00123 | B129: Granito Cinza Andorinha 20mm para rodabancada | C129: m2 | D129: 120 | E129: =OFFSET(INDEX(Composições!A:J,MATCH(Orçamentária!A129,Composições!A:A,0),8),2,0) -> 373.5240849 | F129: 44822.89 | G129: =BDI!$B$17 -> 0.191 | H129: 444.87 | I129: 53384.4
A130: SF-00124 | B130: Granito Cinza Andorinha 20mm para bancadas | C130: m2 | D130: 50 | E130: =OFFSET(INDEX(Composições!A:J,MATCH(Orçamentária!A130,Composições!A:A,0),8),2,0) -> 367.4933024 | F130: 18374.67 | G130: =BDI!$B$17 -> 0.191 | H130: 437.68 | I130: 21884
A131: SF-00125 | B131: Granito Cinza Andorinha 20mm para divisória | C131: m2 | D131: 100 | E131: =OFFSET(INDEX(Composições!A:J,MATCH(Orçamentária!A131,Composições!A:A,0),8),2,0) -> 367.5529305 | F131: 36755.29 | G131: =BDI!$B$17 -> 0.191 | H131: 437.76 | I131: 43776
A132: SF-00126 | B132: Granito Preto São Gabriel 20mm para rodabancada | C132: m2 | D132: 30 | E132: =OFFSET(INDEX(Composições!A:J,MATCH(Orçamentária!A132,Composições!A:A,0),8),2,0) -> 428.6438199 | F132: 12859.31 | G132: =BDI!$B$17 -> 0.191 | H132: 510.51 | I132: 15315.3
A133: SF-00127 | B133: Granito Preto São Gabriel 20mm para bancadas | C133: m2 | D133: 8 | E133: =OFFSET(INDEX(Composições!A:J,MATCH(Orçamentária!A133,Composições!A:A,0),8),2,0) -> 464.1883554 | F133: 3713.51 | G133: =BDI!$B$17 -> 0.191 | H133: 552.85 | I133: 4422.8
A134: SF-00128 | B134: Instalação de bancada de granito ou mármore reaproveitada | C134: m2 | D134: 30 | E134: =OFFSET(INDEX(Composições!A:J,MATCH(Orçamentária!A134,Composições!A:A,0),8),2,0) -> 96.4702124 | F134: 2894.11 | G134: =BDI!$B$17 -> 0.191 | H134: 114.9 | I134: 3447
A135: SF-00129 | B135: Instalação de rodapé reaproveitado, de mármore ou granito | C135: m2 | D135: 20 | E135: =OFFSET(INDEX(Composições!A:J,MATCH(Orçamentária!A135,Composições!A:A,0),8),2,0) -> 9.1769221 | F135: 183.54 | G135: =BDI!$B$17 -> 0.191 | H135: 10.93 | I135: 218.6
A136: SF-00130 | B136: Instalação de soleira ou peitoril, de mármore ou granito, reaproveitados | C136: m2 | D136: 10 | E136: =OFFSET(INDEX(Composições!A:J,MATCH(Orçamentária!A136,Composições!A:A,0),8),2,0) -> 41.806479 | F136: =IF(ISNUMBER(E136),ROUND(D136*E136,2),"") -> 418.06 | G136: =BDI!$B$17 -> 0.191 | H136: =IF(ISNUMBER(E136),ROUND(E136*(1+G136),2),"") -> 49.79 | I136: =IF(ISNUMBER(E136),ROUND(H136*D136,2),"") -> 497.9
A137: SF-00131 | B137: Mármore Branco Especial 20mm para rodabancada | C137: m2 | D137: 1 | E137: =OFFSET(INDEX(Composições!A:J,MATCH(Orçamentária!A137,Composições!A:A,0),8),2,0) -> 437.82507 | F137: 437.83 | G137: =BDI!$B$17 -> 0.191 | H137: 521.45 | I137: 521.45
A138: SF-00132 | B138: Divisória em gesso acartonado revestido - Painel liso cego - Ed. Anexo I | C138: m2 | D138: 500 | E138: 450 | F138: 225000 | G138: =BDI!$G$17 -> 0.1126 | H138: 500.67 | I138: 250335
A139: SF-00133 | B139: Divisória em gesso acartonado revestido - Painel liso, painel de vidro e bandeira – ed. Anexo I | C139: m2 | D139: 300 | E139: 850 | F139: 255000 | G139: =BDI!$G$17 -> 0.1126 | H139: 945.71 | I139: 283713
A140: SF-00134 | B140: Divisória MDF com painel liso cego e bandeira | C140: m2 | D140: 900 | E140: 558.92 | F140: 503028 | G140: =BDI!$G$17 -> 0.1126 | H140: 621.85 | I140: 559665
A141: SF-00135 | B141: Divisória MDF com painel liso, painel de vidro e bandeira | C141: m2 | D141: 900 | E141: 798.88 | F141: 718992 | G141: =BDI!$G$17 -> 0.1126 | H141: 888.83 | I141: 799947
A142: SF-00136 | B142: Divisória MDF com painel paginado cego e bandeira - Interlegis | C142: m2 | D142: 200 | E142: 657.37 | F142: 131474 | G142: =BDI!$G$17 -> 0.1126 | H142: 731.39 | I142: 146278
A143: SF-00137 | B143: Divisória MDF com painel paginado, painel de vidro e bandeira - Interlegis | C143: m2 | D143: 200 | E143: 847.03 | F143: 169406 | G143: =BDI!$G$17 -> 0.1126 | H143: 942.41 | I143: 188482
A144: SF-00138 | B144: Instalação de divisória e porta de divisória com dobradiça reaproveitadas | C144: m2 | D144: 700 | E144: =OFFSET(INDEX(Composições!A:J,MATCH(Orçamentária!A144,Composições!A:A,0),8),2,0) -> 13.9175 | F144: 9742.25 | G144: =BDI!$B$17 -> 0.191 | H144: 16.58 | I144: 11606
A145: SF-00139 | B145: Alçapão em forro de gesso acartonado | C145: m2 | D145: 100 | E145: =OFFSET(INDEX(Composições!A:J,MATCH(Orçamentária!A145,Composições!A:A,0),8),2,0) -> 106.11356 | F145: 10611.36 | G145: =BDI!$B$17 -> 0.191 | H145: 126.38 | I145: 12638
A146: SF-00140 | B146: Forro de PVC em réguas de 100 x 6000mm | C146: m2 | D146: 50 | E146: =OFFSET(INDEX(Composições!A:J,MATCH(Orçamentária!A146,Composições!A:A,0),8),2,0) -> 40.33617825 | F146: 2016.81 | G146: =BDI!$B$17 -> 0.191 | H146: 48.04 | I146: 2402
A147: SF-00141 | B147: Forro de PVC em réguas de 100 x 6000mm, sem estrutura | C147: m2 | D147: 100 | E147: =OFFSET(INDEX(Composições!A:J,MATCH(Orçamentária!A147,Composições!A:A,0),8),2,0) -> 19.0143773 | F147: 1901.44 | G147: =BDI!$B$17 -> 0.191 | H147: 22.65 | I147: 2265
A148: SF-00142 | B148: Forro de PVC modular em placas | C148: m2 | D148: 20 | E148: =OFFSET(INDEX(Composições!A:J,MATCH(Orçamentária!A148,Composições!A:A,0),8),2,0) -> 63.15204825 | F148: 1263.04 | G148: =BDI!$B$17 -> 0.191 | H148: 75.21 | I148: 1504.2
A149: SF-00143 | B149: Forro em chapas metálicas | C149: m2 | D149: 500 | E149: =OFFSET(INDEX(Composições!A:J,MATCH(Orçamentária!A149,Composições!A:A,0),8),2,0) -> 115.1625 | F149: 57581.25 | G149: =BDI!$B$17 -> 0.191 | H149: 137.16 | I149: 68580
A150: SF-00144 | B150: Forro em gesso acartonado monolítico | C150: m2 | D150: 2500 | E150: =OFFSET(INDEX(Composições!A:J,MATCH(Orçamentária!A150,Composições!A:A,0),8),2,0) -> 55.668898 | F150: 139172.25 | G150: =BDI!$B$17 -> 0.191 | H150: 66.3 | I150: 165750
A151: SF-00145 | B151: Forro em gesso acartonado monolítico, sem estrutura | C151: m2 | D151: 2300 | E151: =OFFSET(INDEX(Composições!A:J,MATCH(Orçamentária!A151,Composições!A:A,0),8),2,0) -> 41.3438651 | F151: 95090.89 | G151: =BDI!$B$17 -> 0.191 | H151: 49.24 | I151: 113252
A152: SF-00146 | B152: Forro mineral modulado | C152: m2 | D152: 300 | E152: =OFFSET(INDEX(Composições!A:J,MATCH(Orçamentária!A152,Composições!A:A,0),8),2,0) -> 89.2145 | F152: 26764.35 | G152: =BDI!$B$17 -> 0.191 | H152: 106.25 | I152: 31875
A153: SF-00147 | B153: Forro mineral modulado, sem estrutura | C153: m2 | D153: 100 | E153: =OFFSET(INDEX(Composições!A:J,MATCH(Orçamentária!A153,Composições!A:A,0),8),2,0) -> 25.59395 | F153: 2559.4 | G153: =BDI!$B$17 -> 0.191 | H153: 30.48 | I153: 3048
A154: SF-00148 | B154: Instalação de forro de PVC reaproveitado | C154: m2 | D154: 100 | E154: =OFFSET(INDEX(Composições!A:J,MATCH(Orçamentária!A154,Composições!A:A,0),8),2,0) -> 2.4861557 | F154: 248.62 | G154: =BDI!$B$17 -> 0.191 | H154: 2.96 | I154: 296
A155: SF-00149 | B155: Instalação de forro mineral reaproveitado | C155: m2 | D155: 100 | E155: =OFFSET(INDEX(Composições!A:J,MATCH(Orçamentária!A155,Composições!A:A,0),8),2,0) -> 42.7956 | F155: 4279.56 | G155: =BDI!$B$17 -> 0.191 | H155: 50.97 | I155: 5097
A156: SF-00150 | B156: Tabica metálica em forro de gesso acartonado | C156: m | D156: 2500 | E156: =OFFSET(INDEX(Composições!A:J,MATCH(Orçamentária!A156,Composições!A:A,0),8),2,0) -> 8.6703213 | F156: 21675.8 | G156: =BDI!$B$17 -> 0.191 | H156: 10.33 | I156: 25825
A157: SF-00151 | B157: Instalação de revestimento de piso têxtil (carpete) reaproveitado | C157: m2 | D157: 400 | E157: =OFFSET(INDEX(Composições!A:J,MATCH(Orçamentária!A157,Composições!A:A,0),8),2,0) -> 6.1541 | F157: 2461.64 | G157: =BDI!$B$17 -> 0.191 | H157: 7.33 | I157: 2932
A158: SF-00152 | B158: Baguetes metálicos | C158: m | D158: 0 | E158: =OFFSET(INDEX(Composições!A:J,MATCH(Orçamentária!A158,Composições!A:A,0),8),2,0) -> 8.121 | F158: 0 | H158: 8.12 | I158: 0
A159: SF-00153 | B159: Cordão de massa de vidraceiro | C159: m | D159: 0 | E159: =OFFSET(INDEX(Composições!A:J,MATCH(Orçamentária!A159,Composições!A:A,0),8),2,0) -> 17.988725 | F159: 0 | H159: 17.99 | I159: 0
A160: SF-00154- | B160: Espelho cristal, e=5 mm- | C160: m2 | D160: 0 | E160: =OFFSET(INDEX(Composições!A:J,MATCH(Orçamentária!A160,Composições!A:A,0),8),2,0) -> 
A161: SF-00155 | B161: Instalação de vidro reaproveitado | C161: m2 | D161: 50 | E161: =OFFSET(INDEX(Composições!A:J,MATCH(Orçamentária!A161,Composições!A:A,0),8),2,0) -> 26.673625 | F161: 1333.68 | G161: =BDI!$B$17 -> 0.191 | H161: 31.77 | I161: 1588.5
A162: SF-00156 | B162: Substituição da calafetação com selante | C162: m | D162: 0 | E162: =OFFSET(INDEX(Composições!A:J,MATCH(Orçamentária!A162,Composições!A:A,0),8),2,0) -> 19.4720873 | F162: 0 | H162: 19.47 | I162: 0
A163: SF-00157 | B163: Vidro liso comum transparente 4mm | C163: m2 | D163: 0 | E163: =OFFSET(INDEX(Composições!A:J,MATCH(Orçamentária!A163,Composições!A:A,0),8),2,0) -> 128.808125 | F163: 0 | H163: 128.81 | I163: 0
A164: SF-00158 | B164: Vidro liso comum transparente 6mm | C164: m2 | D164: 0 | E164: =OFFSET(INDEX(Composições!A:J,MATCH(Orçamentária!A164,Composições!A:A,0),8),2,0) -> 181.0643 | F164: 0 | H164: 181.06 | I164: 0
A165: SF-00159 | B165: Instalação de painéis de vidro temperado reaproveitados | C165: m2 | D165: 70 | E165: =OFFSET(INDEX(Composições!A:J,MATCH(Orçamentária!A165,Composições!A:A,0),8),2,0) -> 39.82495 | F165: 2787.75 | G165: =BDI!$B$17 -> 0.191 | H165: 47.43 | I165: 3320.1
A166: SF-00160- | B166: Mola hidráulica de piso- | C166: un | D166: 0 | E166: =OFFSET(INDEX(Composições!A:J,MATCH(Orçamentária!A166,Composições!A:A,0),8),2,0) -> 
A167: SF-00161 | B167: Instalação de persianas reaproveitadas | C167: m | D167: 800 | E167: =OFFSET(INDEX(Composições!A:J,MATCH(Orçamentária!A167,Composições!A:A,0),8),2,0) -> 6.35486445 | F167: 5083.89 | G167: =BDI!$B$17 -> 0.191 | H167: 7.57 | I167: 6056
A168: SF-00162 | B168: Persiana vertical em alumínio 90 mm, cor verde claro | C168: m2 | D168: 0
A169: SF-00163- | B169: Persiana vertical em tecido Juta Resinado sem blecaute de 90mm, cor bege- | C169: m2 | D169: 0 | E169: =OFFSET(INDEX(Composições!A:J,MATCH(Orçamentária!A169,Composições!A:A,0),8),2,0) -> 
A170: SF-00164- | B170: Persiana vertical em tecido sintético sem blecaute de 90mm, cores verde escuro ou branca- | C170: m2 | D170: 0 | E170: =OFFSET(INDEX(Composições!A:J,MATCH(Orçamentária!A170,Composições!A:A,0),8),2,0) -> 
A171: SF-00165- | B171: Película jateada- | C171: m2 | D171: 0 | E171: =OFFSET(INDEX(Composições!A:J,MATCH(Orçamentária!A171,Composições!A:A,0),8),2,0) -> 
A172: SF-00166 | B172: Tubo de ligação para bacia sanitária | C172: un | D172: 15 | E172: =OFFSET(INDEX(Composições!A:J,MATCH(Orçamentária!A172,Composições!A:A,0),8),2,0) -> 100.7582 | F172: 1511.37 | G172: =BDI!$B$17 -> 0.191 | H172: 120 | I172: 1800
A173: SF-00167 | B173: Tubo PVC esgoto ou aguas pluviais predial DN 100mm | C173: m | D173: 215 | E173: =OFFSET(INDEX(Composições!A:J,MATCH(Orçamentária!A173,Composições!A:A,0),8),2,0) -> 46.0443663 | F173: 9899.54 | G173: =BDI!$B$17 -> 0.191 | H173: 54.84 | I173: 11790.6
A174: SF-00168 | B174: Tubo PVC esgoto ou aguas pluviais predial DN 40mm | C174: m | D174: 80 | E174: =OFFSET(INDEX(Composições!A:J,MATCH(Orçamentária!A174,Composições!A:A,0),8),2,0) -> 14.4555515 | F174: 1156.44 | G174: =BDI!$B$17 -> 0.191 | H174: 17.22 | I174: 1377.6
A175: SF-00169 | B175: Tubo PVC esgoto ou aguas pluviais predial DN 50mm | C175: m | D175: 80 | E175: =OFFSET(INDEX(Composições!A:J,MATCH(Orçamentária!A175,Composições!A:A,0),8),2,0) -> 19.7701802 | F175: 1581.61 | G175: =BDI!$B$17 -> 0.191 | H175: 23.55 | I175: 1884
A176: SF-00170 | B176: Tubo PVC esgoto ou aguas pluviais predial DN 75mm | C176: m | D176: 100 | E176: =OFFSET(INDEX(Composições!A:J,MATCH(Orçamentária!A176,Composições!A:A,0),8),2,0) -> 29.5359389 | F176: 2953.59 | G176: =BDI!$B$17 -> 0.191 | H176: 35.18 | I176: 3518
A177: SF-00171 | B177: Tubo PVC soldável agua fria DN 25mm | C177: m | D177: 300 | E177: =OFFSET(INDEX(Composições!A:J,MATCH(Orçamentária!A177,Composições!A:A,0),8),2,0) -> 3.4186605 | F177: 1025.6 | G177: =BDI!$B$17 -> 0.191 | H177: 4.07 | I177: 1221
A178: SF-00172 | B178: Tubo PVC soldável agua fria DN 32mm | C178: m | D178: 200 | E178: =OFFSET(INDEX(Composições!A:J,MATCH(Orçamentária!A178,Composições!A:A,0),8),2,0) -> 7.067867 | F178: 1413.57 | G178: =BDI!$B$17 -> 0.191 | H178: 8.42 | I178: 1684
A179: SF-00173 | B179: Tubo PVC soldável agua fria DN 40mm | C179: m | D179: 100 | E179: =OFFSET(INDEX(Composições!A:J,MATCH(Orçamentária!A179,Composições!A:A,0),8),2,0) -> 10.11522 | F179: 1011.52 | G179: =BDI!$B$17 -> 0.191 | H179: 12.05 | I179: 1205
A180: SF-00174 | B180: Tubo PVC soldável agua fria DN 50mm | C180: m | D180: 100 | E180: =OFFSET(INDEX(Composições!A:J,MATCH(Orçamentária!A180,Composições!A:A,0),8),2,0) -> 11.6485675 | F180: 1164.86 | G180: =BDI!$B$17 -> 0.191 | H180: 13.87 | I180: 1387
A181: SF-00175 | B181: Base registro gaveta 3/4" | C181: un | D181: 60 | E181: =OFFSET(INDEX(Composições!A:J,MATCH(Orçamentária!A181,Composições!A:A,0),8),2,0) -> 42.1322675 | F181: 2527.94 | G181: =BDI!$B$17 -> 0.191 | H181: 50.18 | I181: 3010.8
A182: SF-00176 | B182: Caixa sifonada de PVC DN 150mm | C182: un | D182: 45 | E182: =OFFSET(INDEX(Composições!A:J,MATCH(Orçamentária!A182,Composições!A:A,0),8),2,0) -> 54.0711044 | F182: 2433.2 | G182: =BDI!$B$17 -> 0.191 | H182: 64.4 | I182: 2898
A183: SF-00177 | B183: Caixa sifonada de PVC DN 250mm | C183: un | D183: 45 | E183: =OFFSET(INDEX(Composições!A:J,MATCH(Orçamentária!A183,Composições!A:A,0),8),2,0) -> 92.0046044 | F183: 4140.21 | G183: =BDI!$B$17 -> 0.191 | H183: 109.58 | I183: 4931.1
A184: SF-00178 | B184: Grelha quadrada para ralo 10x10cm | C184: un | D184: 45 | E184: =OFFSET(INDEX(Composições!A:J,MATCH(Orçamentária!A184,Composições!A:A,0),8),2,0) -> 35.943975 | F184: 1617.48 | G184: =BDI!$B$17 -> 0.191 | H184: 42.81 | I184: 1926.45
A185: SF-00179 | B185: Grelha quadrada para ralo 15x15cm | C185: un | D185: 45 | E185: =OFFSET(INDEX(Composições!A:J,MATCH(Orçamentária!A185,Composições!A:A,0),8),2,0) -> 61.843975 | F185: 2782.98 | G185: =BDI!$B$17 -> 0.191 | H185: 73.66 | I185: 3314.7
A186: SF-00180 | B186: Ralo seco PVC DN 100x40mm | C186: un | D186: 45 | E186: =OFFSET(INDEX(Composições!A:J,MATCH(Orçamentária!A186,Composições!A:A,0),8),2,0) -> 8.93347795 | F186: 402.01 | G186: =BDI!$B$17 -> 0.191 | H186: 10.64 | I186: 478.8
A187: SF-00181 | B187: Assento para bacia convencional – Linha Administrativa | C187: un | D187: 45 | E187: =OFFSET(INDEX(Composições!A:J,MATCH(Orçamentária!A187,Composições!A:A,0),8),2,0) -> 61.24265 | F187: 2755.92 | G187: =BDI!$B$17 -> 0.191 | H187: 72.94 | I187: 3282.3
A188: SF-00182 | B188: Bacia convencional – Linha Administrativa | C188: un | D188: 45 | E188: =OFFSET(INDEX(Composições!A:J,MATCH(Orçamentária!A188,Composições!A:A,0),8),2,0) -> 261.866743 | F188: 11784 | G188: =BDI!$B$17 -> 0.191 | H188: 311.88 | I188: 14034.6
A189: SF-00183 | B189: Bacia convencional com saída horizontal | C189: un | D189: 10 | E189: =OFFSET(INDEX(Composições!A:J,MATCH(Orçamentária!A189,Composições!A:A,0),8),2,0) -> 292.764243 | F189: 2927.64 | G189: =BDI!$B$17 -> 0.191 | H189: 348.68 | I189: 3486.8
A190: SF-00184 | B190: Cuba oval de embutir | C190: un | D190: 45 | E190: =OFFSET(INDEX(Composições!A:J,MATCH(Orçamentária!A190,Composições!A:A,0),8),2,0) -> 95.1667863 | F190: 4282.51 | G190: =BDI!$B$17 -> 0.191 | H190: 113.34 | I190: 5100.3
A191: SF-00185 | B191: Cuba retangular em aço inox – Linha Administrativa | C191: un | D191: 30 | E191: =OFFSET(INDEX(Composições!A:J,MATCH(Orçamentária!A191,Composições!A:A,0),8),2,0) -> 205.298739 | F191: 6158.96 | G191: =BDI!$B$17 -> 0.191 | H191: 244.51 | I191: 7335.3
A192: SF-00186 | B192: Cuba semiencaixe quadrada com mesa | C192: un | D192: 15 | E192: =OFFSET(INDEX(Composições!A:J,MATCH(Orçamentária!A192,Composições!A:A,0),8),2,0) -> 701.1567863 | F192: 10517.35 | G192: =BDI!$B$17 -> 0.191 | H192: 835.08 | I192: 12526.2
A193: SF-00187 | B193: Instalação de lavatório reaproveitado | C193: un | D193: 30 | E193: =OFFSET(INDEX(Composições!A:J,MATCH(Orçamentária!A193,Composições!A:A,0),8),2,0) -> 38.416537 | F193: 1152.5 | G193: =BDI!$B$17 -> 0.191 | H193: 45.75 | I193: 1372.5
A194: SF-00188 | B194: Instalação de mictório reaproveitado | C194: un | D194: 30 | E194: =OFFSET(INDEX(Composições!A:J,MATCH(Orçamentária!A194,Composições!A:A,0),8),2,0) -> 39.026513 | F194: 1170.8 | G194: =BDI!$B$17 -> 0.191 | H194: 46.48 | I194: 1394.4
A195: SF-00189 | B195: Instalação de vaso sanitário reaproveitado | C195: un | D195: 30 | E195: =OFFSET(INDEX(Composições!A:J,MATCH(Orçamentária!A195,Composições!A:A,0),8),2,0) -> 56.9558877 | F195: 1708.68 | G195: =BDI!$B$17 -> 0.191 | H195: 67.83 | I195: 2034.9
A196: SF-00190 | B196: Lavatório suspenso | C196: un | D196: 10 | E196: =OFFSET(INDEX(Composições!A:J,MATCH(Orçamentária!A196,Composições!A:A,0),8),2,0) -> 110.303037 | F196: 1103.03 | G196: =BDI!$B$17 -> 0.191 | H196: 131.37 | I196: 1313.7
A197: SF-00191 | B197: Mictório – Linha Administrativa | C197: un | D197: 20 | E197: =OFFSET(INDEX(Composições!A:J,MATCH(Orçamentária!A197,Composições!A:A,0),8),2,0) -> 289.4751555 | F197: 5789.5 | G197: =BDI!$B$17 -> 0.191 | H197: 344.76 | I197: 6895.2
A198: SF-00192 | B198: Tanque 38 litros – Linha Administrativa | C198: un | D198: 25 | E198: =OFFSET(INDEX(Composições!A:J,MATCH(Orçamentária!A198,Composições!A:A,0),8),2,0) -> 443.1950525 | F198: 11079.88 | G198: =BDI!$B$17 -> 0.191 | H198: 527.85 | I198: 13196.25
A199: SF-00193 | B199: Acabamento para registro GD – Linha Administrativa | C199: un | D199: 35 | E199: =OFFSET(INDEX(Composições!A:J,MATCH(Orçamentária!A199,Composições!A:A,0),8),2,0) -> 47.28468 | F199: 1654.96 | G199: =BDI!$B$17 -> 0.191 | H199: 56.32 | I199: 1971.2
A200: SF-00194 | B200: Acabamento para registro PQ – Linha Administrativa | C200: un | D200: 70 | E200: =OFFSET(INDEX(Composições!A:J,MATCH(Orçamentária!A200,Composições!A:A,0),8),2,0) -> 35.68468 | F200: =IF(ISNUMBER(E200),ROUND(D200*E200,2),"") -> 2497.93 | G200: =BDI!$B$17 -> 0.191 | H200: =IF(ISNUMBER(E200),ROUND(E200*(1+G200),2),"") -> 42.5 | I200: =IF(ISNUMBER(E200),ROUND(H200*D200,2),"") -> 2975
A201: SF-00195 | B201: Ducha higiênica – Linha Administrativa | C201: un | D201: 60 | E201: =OFFSET(INDEX(Composições!A:J,MATCH(Orçamentária!A201,Composições!A:A,0),8),2,0) -> 263.5025 | F201: 15810.15 | G201: =BDI!$B$17 -> 0.191 | H201: 313.83 | I201: 18829.8
... 1166 more rows

Sheet BDI
A1: =Orçamentária!A1 -> Execução de serviços comuns de engenharia nas edificações do CASF
A2: BENEFÍCIOS E DESPESAS INDIRETAS - BDI
A4: BDI Edificações | F4: BDI mero fornecimento
A5: Componentes do BDI | B5: Cálculo sem CPRB | C5: Cálculo com CPRB | F5: Componentes do BDI | G5: Cálculo sem CPRB | H5: Cálculo com CPRB
B6: não-desonerado | C6: desonerado | G6: não-desonerado | H6: desonerado
B7: % considerado | C7: % considerado | G7: % considerado | H7: % considerado
A8: AC | B8: 0.035 | C8: 0.035 | F8: AC | G8: 0.0175 | H8: 0.0175
A9: S+G | B9: 0.008 | C9: 0.008 | F9: S+G | G9: 0.0039 | H9: 0.0039
A10: R | B10: 0.0125 | C10: 0.0125 | F10: R | G10: 0.0056 | H10: 0.0056
A11: DF | B11: 0.0076 | C11: 0.0076 | F11: DF | G11: 0.0085 | H11: 0.0085
A12: L | B12: 0.0678 | C12: 0.0678 | F12: L | G12: 0.035 | H12: 0.035
A13: PIS | B13: 0.0065 | C13: 0.0065 | F13: PIS | G13: 0.0065 | H13: 0.0065
A14: COFINS | B14: 0.03 | C14: 0.03 | F14: COFINS | G14: 0.03 | H14: 0.03
A15: CPRB | B15: 0 | C15: 0.045 | F15: CPRB | G15: 0 | H15: 0.045
A16: ISS | B16: 0.01 | C16: 0.01 | F16: ISS | G16: 0 | H16: 0
A17: BDI Edificações | B17: =ROUND(((1+B8+B9+B10)*(1+B11)*(1+B12))/(1-(B13+B14+B15+B16))-1,4) -> 0.191 | C17: =ROUND(((1+C8+C9+C10)*(1+C11)*(1+C12))/(1-(C13+C14+C15+C16))-1,4) -> 0.25 | F17: BDI mero fornecimento | G17: =ROUND(((1+G8+G9+G10)*(1+G11)*(1+G12))/(1-(G13+G14+G15+G16))-1,4) -> 0.1126 | H17: =ROUND(((1+H8+H9+H10)*(1+H11)*(1+H12))/(1-(H13+H14+H15+H16))-1,4) -> 0.1671
A19: Referências TCU - BDI Edificações | F19: Referências TCU - BDI mero fornecimento
A20: Componentes do BDI | B20: 1º Quartil | C20: Médio | D20: 3º Quartil | F20: Componentes do BDI | G20: 1º Quartil | H20: Médio | I20: 3º Quartil
A21: AC | B21: 0.03 | C21: 0.04 | D21: 0.055 | F21: AC | G21: 0.015 | H21: 0.0345 | I21: 0.0449
A22: S+G | B22: 0.008 | C22: 0.008 | D22: 0.01 | F22: S+G | G22: 0.003 | H22: 0.0048 | I22: 0.0082
A23: R | B23: 0.0097 | C23: 0.0127 | D23: 0.0127 | F23: R | G23: 0.0056 | H23: 0.0085 | I23: 0.0089
A24: DF | B24: 0.0059 | C24: 0.0123 | D24: 0.0139 | F24: DF | G24: 0.0085 | H24: 0.0085 | I24: 0.0111
A25: L | B25: 0.0616 | C25: 0.074 | D25: 0.0896 | F25: L | G25: 0.035 | H25: 0.0511 | I25: 0.0622
A26: BDI Edificações | B26: 0.2034 | C26: 0.2212 | D26: 0.25 | F26: BDI mero fornecimento | G26: 0.111 | H26: 0.1402 | I26: 0.168
A48: Fontes: Acórdãos 2.369/2011-TCU-Plenário e 2.622/2013-TCU-Plenário.
